{"text_format":"1","workbook":"xlsx","n_sheets":7,"sheets":["初回利用時確認事項　別紙２","貸会議室利用申込書　別紙１＿１","貸会議室利用申込書　別紙１＿２（予備）","貸会議室利用申込書　別紙１＿３（予備）","貸会議室利用申込書　別紙１＿４（予備）","貸会議室利用申込書　別紙１ (記入例）","利用料金表"],"not_rendered":{"charts":0,"images":2,"macros":1,"external_links":0,"defined_names":8,"comments":0,"pivot_tables":0},"unopened":[],"bounds":{"document_bytes":16777216,"sheet_cells":100000,"rows_first":2000,"rows_last":500,"rows_between":2000,"halvings":0,"cell_chars":16384,"cell_head_chars":4096},"cells_cut":0,"cells_raw":0,"read":"whole","date_system":"1900"}

{"sheet":"初回利用時確認事項　別紙２","index":0,"n_rows":31,"n_cols":15,"rows_kept":31,"cut":false,"hidden":false,"merged":[[20,1,20,2],[20,8,20,14],[1,0,1,14],[13,8,13,14],[9,4,9,5],[9,6,9,14],[8,1,8,14],[10,1,10,14],[11,1,11,14],[12,1,12,14],[9,0,12,0],[13,1,13,2],[4,8,4,9],[4,0,4,7],[16,1,16,14],[18,1,18,14],[19,1,19,14],[14,1,14,14],[17,0,19,0],[15,1,15,14],[17,4,17,5],[17,6,17,14]]}
[null,null,null,null,null,null,null,null,null,null,null,null,null,null,"（別紙２）"]
["初回利用時確認事項"]
[]
["エステック株式会社　行"]
[null,null,null,null,null,null,null,null,null,null,"年",null,"月",null,"日"]
[]
["貸会議室利用にあたり以下の通り報告いたします。"]
[]
["商　　　号"]
["本 店 住 所","〒",null,"－"]
[]
[]
[]
["会社設立年月日",null,null,"年",null,"月",null,"日"]
["主要な事業目的"]
["（フリガナ）"]
["代表者のお名前"]
["代表者の\nご自宅住所","〒",null,"－"]
[]
[]
["代表者生年月日",null,null,"年",null,"月",null,"日"]
[]
[]
["【注】"]
["・登記簿謄本の内容を転記して下さい。主要な事業目的は簡略可。"]
["・登記簿謄本（履歴事項全部証明書）（コピー可）をご提出いただける場合は（別紙２）"]
["　の提出は不要です。"]
[]
[" (TEL)03-3342-3515 　(FAX)03-3342-3510　 (URL)http://stec-jbldg.co.jp/conference"]
[]
[null,null,null,null,null,null,null,null,null,null,null,null,null,null,"エステック株式会社（2026.4）"]

{"sheet":"貸会議室利用申込書　別紙１＿１","index":1,"n_rows":94,"n_cols":44,"rows_kept":94,"cut":false,"hidden":false,"merged":[[52,23,53,28],[52,29,53,33],[52,34,53,39],[60,0,60,39],[61,0,61,39],[55,0,59,0],[55,13,55,14],[55,23,55,25],[55,26,55,28],[55,29,55,31],[55,32,55,34],[55,35,55,39],[44,23,45,28],[46,23,47,28],[44,29,45,33],[46,29,47,33],[44,34,45,39],[46,34,47,39],[50,23,51,28],[50,29,51,33],[50,34,51,39],[48,23,49,28],[48,29,49,33],[48,34,49,39],[41,0,41,39],[42,0,42,39],[43,17,43,22],[29,24,30,26],[31,0,36,0],[31,1,36,1],[31,16,31,17],[34,27,34,38],[29,12,30,12],[29,13,30,14],[29,15,30,15],[29,17,30,17],[29,20,30,22],[29,23,30,23],[29,1,30,1],[29,2,30,5],[29,6,30,6],[27,1,28,1],[27,3,28,10],[27,11,28,18],[27,20,28,27],[27,28,28,34],[27,35,28,35],[27,36,28,39],[38,1,38,39],[40,6,40,13],[40,29,40,38],[24,30,25,39],[25,4,26,8],[25,11,26,12],[25,13,26,13],[25,14,26,25],[25,26,26,26],[25,27,25,29],[26,27,26,29],[29,7,30,8],[29,9,30,9],[29,10,30,11],[26,30,26,31],[26,33,26,35],[26,37,26,39],[29,28,30,39],[13,30,13,31],[13,33,13,35],[21,2,21,3],[21,5,21,7],[21,9,21,12],[21,18,21,19],[22,2,22,39],[23,0,30,0],[23,1,26,1],[23,4,24,13],[23,16,24,25],[23,27,23,29],[16,0,22,0],[16,1,22,1],[18,2,18,3],[18,6,18,36],[19,2,19,3],[19,4,19,16],[19,19,20,30],[19,31,19,33],[19,34,20,38],[20,2,20,17],[23,30,23,39],[24,27,24,29],[9,27,9,29],[9,30,9,39],[10,0,15,0],[10,1,15,1],[10,2,11,3],[10,5,11,26],[10,27,10,29],[10,30,10,39],[11,27,12,29],[13,37,13,39],[14,2,14,26],[14,27,14,29],[14,30,14,39],[15,2,15,26],[15,27,15,29],[15,30,15,39],[11,30,12,39],[12,2,12,3],[12,5,12,26],[13,2,13,3],[13,5,13,7],[13,9,13,12],[13,18,13,19],[13,27,13,29],[4,0,9,0],[4,1,9,1],[4,2,5,3],[4,5,5,26],[4,27,4,29],[4,30,4,39],[5,27,6,29],[5,30,6,39],[6,2,6,3],[7,30,7,31],[7,33,7,35],[7,37,7,39],[8,2,8,26],[8,27,8,29],[8,30,8,31],[8,33,8,35],[8,37,8,39],[6,5,6,26],[7,2,7,3],[7,5,7,7],[7,9,7,12],[7,18,7,19],[7,27,7,29],[9,2,9,26],[1,37,1,39],[2,0,3,1],[2,2,3,3],[2,4,3,7],[2,8,3,9],[2,10,3,11],[2,12,3,12],[2,13,3,14],[2,15,3,15],[2,16,3,16],[2,19,3,38]]}
["（2026.4版）エステック情報ビル 貸会議室利用申込書",null,null,null,null,null,null,null,null,null,null,null,null,null,null,null,"◆提出先（E-MAIL）yoyaku@stec-jbldg.co.jp ※Excelファイルをご提出ください。",null,null,null,null,null,null,null,null,null,null,null,null,null,null,null,null,null,null,null,null,null,"(別紙１)",null,null,null,"複数日、別時間帯を同時に申込いただく場合、"]
[]
["申込日",null,"西暦",null,null,null,null,null,"年",null,null,null,"月",null,null,"日",null,null,null,"貸会議室利用規約（2026.2版）について了承の上、\n下記の通り申し込みます。（必須）",null,null,null,null,null,null,null,null,null,null,null,null,null,null,null,null,null,null,null,null,null,null,"お手数ですが、右側にある予備シートへ入力をお願いいたします。"]
[null,null,null,null,null,null,null,null,null,null,null,null,null,null,null,null,null,null,null,null,null,null,null,null,null,null,null,null,null,null,null,null,null,null,null,null,null,null,null,null,null,null,"(申込者、利用者、請求先情報は別紙1_1の入力内容が予備シートへも自動反映されます)"]
["（必須） ","①申込者","法人名",null,null,null,null,null,null,null,null,null,null,null,null,null,null,null,null,null,null,null,null,null,null,null,null,"フリガナ",null,null,null,null,null,null,null,null,null,null,null,null,null,null,"また、予備３シートでも足りない場合はファイルごとコピー頂くか、"]
[null,null,null,null,null,null,null,null,null,null,null,null,null,null,null,null,null,null,null,null,null,null,null,null,null,null,null,"担当者\n氏  名",null,null,null,null,null,null,null,null,null,null,null,null,null,null,"再度HPからダウンロードいただき別ファイルをお使いください。"]
[null,null,"所　属"]
[null,null,"住　所",null,"〒",null,null,null,"－",null,null,null,null,null,null,null,null,null,null,null,null,null,null,null,null,null,null,"ＴＥＬ",null,null,null,null,"-",null,null,null,"-"]
[null,null,null,null,null,null,null,null,null,null,null,null,null,null,null,null,null,null,null,null,null,null,null,null,null,null,null,"ＦＡＸ",null,null,null,null,"-",null,null,null,"-"]
[null,null,null,null,null,null,null,null,null,null,null,null,null,null,null,null,null,null,null,null,null,null,null,null,null,null,null,"E-ＭＡＩＬ"]
["申込者と異なる場合","➁利用者","法人名",null,null,null,null,null,null,null,null,null,null,null,null,null,null,null,null,null,null,null,null,null,null,null,null,"フリガナ"]
[null,null,null,null,null,null,null,null,null,null,null,null,null,null,null,null,null,null,null,null,null,null,null,null,null,null,null,"担当者\n氏  名"]
[null,null,"所　属"]
[null,null,"住　所",null,"〒",null,null,null,"－",null,null,null,null,null,null,null,null,null,null,null,null,null,null,null,null,null,null,"ＴＥＬ",null,null,null,null,"-",null,null,null,"-"]
[]
[]
["（必須） ","請求先",null,"①申込者",null,null,"　",null,"➁利用者",null,null,null,null,"賃料と一緒に請求（テナント様のみ　利用日翌月の賃料の請求に合わせてご請求致します。）"]
[null,null,null,"申込者（利用者）と異なる住所へ送付希望、請求書の宛名書きにご要望がある場合は下記へご記入下さい。"]
[null,null,"要　望",null,null,"（　　　　　　　　　　　　　",null,null,null,null,null,null,null,null,null,null,null,null,null,null,null,null,null,null,null,null,null,null,null,null,null,null,null,null,null,null,null,"）"]
[null,null,"法人名",null,null,null,null,null,null,null,null,null,null,null,null,null,null,"所属",null,null,null,null,null,null,null,null,null,null,null,null,null,"担当者"]
[]
[null,null,"住　所",null,"〒",null,null,null,"－"]
[]
["（必須） ","利用目的",null,null,"社内（外）会議・説明会",null,null,null,null,null,null,null,null,null,null,null,"講演会・セミナー",null,null,null,null,null,null,null,null,null,null,"フリガナ"]
[null,null,null,null,null,null,null,null,null,null,null,null,null,null,null,null,null,null,null,null,null,null,null,null,null,null,null,"当日現地"]
[null,null,null,null,"研修・勉強会",null,null,null,null,null,null,"その他",null,"（",null,null,null,null,null,null,null,null,null,null,null,null,"）","責任者名"]
[null,null,null,null,null,null,null,null,null,null,null,null,null,null,null,null,null,null,null,null,null,null,null,null,null,null,null,"携帯",null,null,null,null,"-",null,null,null,"-"]
[null,"室名",null,"会議室A（108名定員）",null,null,null,null,null,null,null," 会議室B（195名定員）",null,null,null,null,null,null,null,null,"会議室D（45名定員）",null,null,null,null,null,null,true,"会議室E（18名定員）",null,null,null,null,null,null,"参加人数",null,null,null,null,false,false,false,false]
[]
[null,"利用日",null,null,null,null,"年",null,null,"月",null,null,"日",null,null,"曜日",null,"時間",null,null,null,null,null,"～",null,null,null,null,"※別会場、別時間帯を同時に申込みいただく場合、\n　お手数ですが予備sheetへ入力をお願いいたします。"]
[]
["ご希望のものにチェック","備  品",null,"プロジェクター［ Ａ・Ｂ 各10,000円（税別）］",null,null,null,null,null,null,null,null,null,null,null,null,null,null,null,null,"プロジェクター［Ｄ　5,000円（税別）］",null,null,null,null,null,null,null,null,null,null,null,null,null,"スクリーン",null,null,null,null,null,false,false]
[null,null,null,"ハンドマイク",null,null,null,null,null,null,"本",null,null,null,"ピンマイク",null,null,null,1,"本",null,"※ハンドマイクを３本以上ご希望の場合は事前に要相談。"]
[null,null,null,"レーザーポインター",null,null,null,null,null,1,"個",null,null,null,"水差（容器のみ）",null,null,null,null,null,null,null,null,"アンプ"]
[null,null,null,"ホワイトボード（キャスター付き）",null,null,null,null,null,null,null,null,null,"※各室２台。それ以上要相談",null,null,null,null,null,null,null,null,null,"その他",null,null,"（",null,null,null,null,null,null,null,null,null,null,null,null,"）"]
[null,null,"◆プロジェクター以外追加料金無し。プロジェクターには映像ケーブル（ＶＧＡ・ＨＤＭＩ）とオーディオコード、スクリーンを含みます。"]
[null,null,"◆各会議室常設　…　演台（会議室Ｅを除く）、延長コード、案内板、ホワイトボード、受付用机・椅子、ハンガー、傘立など"]
[null,null,"案内表示を希望の場合ご記入ください。（20～30文字以内）　※スペースの都合によりご希望通り掲載出来ない場合もございます。"]
[]
[null,"<新規申込者様へお尋ねします>　…　どのような経路で当会議室を知りましたか？"]
[null,"①紹介",null,"（","社名　　　　　　　　　　　　　　",null,null,null,null,null,null,null,null,null,"）",null,null,"➁ホームページ",null,null,null,null,null,null,null,"③その他",null,null,"（",null,null,null,null,null,null,null,null,null,null,"）"]
[]
["　　　　　エステック社内処理欄 （以下記入不要）"]
[null,null,null,null,null,null,null,null,null,null,null,null,null,null,null,null,null,"内　　訳",null,null,null,null,null,null,null,"料　　金",null,null,null,null,null,"消費税等 10%",null,null,null,null,"合　　計"]
[null,null,null,null,null,null,null,null,null,null,null,null,null,null,null,null,null,null,"基本料金",null,null,null,null,null,null,null,null,null,null,{"$f":"X45*0.1","v":0},null,null,null,null,{"$f":"X45+AD45","v":0}]
[]
[null,null,null,null,null,null,null,null,null,null,null,null,null,null,null,null,null,null,"延長料金",null,null,null,null,null,null,null,null,null,null,{"$f":"X47*0.1","v":0},null,null,null,null,{"$f":"X47+AD47","v":0}]
[]
[null,null,null,null,null,null,null,null,null,null,null,null,null,null,null,null,null,null,"室料金計",null,null,null,null,{"$f":"SUM(X45:AC48)","v":0},null,null,null,null,null,{"$f":"SUM(AD45:AH48)","v":0},null,null,null,null,{"$f":"X49+AD49","v":0}]
[]
[null,null,null,null,null,null,null,null,null,null,null,null,null,null,null,null,null,null,"ﾌﾟﾛｼﾞｪｸﾀｰ他",null,null,null,null,null,null,null,null,null,null,{"$f":"X51*0.1","v":0},null,null,null,null,{"$f":"X51+AD51","v":0}]
[]
[null,null,null,null,null,null,null,null,null,null,null,null,null,null,null,null,null,null,"請求金額合計",null,null,null,null,{"$f":"SUM(X49:AC52)","v":0},null,null,null,null,null,{"$f":"SUM(AD49:AH52)","v":0},null,null,null,null,{"$f":"X53+AD53","v":0}]
[]
[]
["備  考",null,"新　規",null,"（              ）",null,null,null,null,null,null,null,null,null,null,null,null,null,null,null,"帳",null,"hp","総務部",null,null,"常 務",null,null,"部 長",null,null,"担 当",null,null,"領収印"]
[null,null,"テナント"]
[null,null,"前回利用",null,null,"（   　　　　           ）"]
[null,null,"入金予定",null,null,"（        　　　　      ）"]
[]
["当社は、「個人情報保護に関する法律」を遵守し、上記にご記入の個人情報を本申込用件に係る目的以外には一切利用致しません。　"]
["　エステック株式会社　　（TEL）03-3342-3515\n◆お申込書ダウンロード→（URL）http://stec-jbldg.co.jp/conference　◆提出先［ＥＸＣＥＬ］→（E-MAIL）yoyaku@stec-jbldg.co.jp  　（FAX）03-3342-3510"]
[null,null,null,null,false,"年",null,"日","月","曜",null,"開始",null,"終了"]
[null,null,null,null,false,2022,null,1,1,"（月）",null,"08:30:00",null,"11:00:00"]
[null,null,null,null,false,2023,null,2,2,"（火）",null,"09:00:00",null,"11:30:00"]
[null,null,null,null,false,2024,null,3,3,"（水）",null,"09:30:00",null,"12:00:00"]
[null,null,null,null,false,2025,null,4,4,"（木）",null,"10:00:00",null,"12:30:00"]
[null,null,null,null,null,2026,null,5,5,"（金）",null,"10:30:00",null,"13:00:00"]
[null,null,null,null,null,2027,null,6,6,"（土）",null,"11:00:00",null,"13:30:00"]
[null,null,null,null,null,2028,null,7,7,"（日）",null,"11:30:00",null,"14:00:00"]
[null,null,null,null,null,2029,null,8,8,null,null,"12:00:00",null,"14:30:00"]
[null,null,null,null,null,null,null,9,9,null,null,"12:30:00",null,"15:00:00"]
[null,null,null,null,null,null,null,10,10,null,null,"13:00:00",null,"15:30:00"]
[null,null,null,null,null,null,null,11,11,null,null,"13:30:00",null,"16:00:00"]
[null,null,null,null,null,null,null,12,12,null,null,"14:00:00",null,"16:30:00"]
[null,null,null,null,null,null,null,13,null,null,null,"14:30:00",null,"17:00:00"]
[null,null,null,null,null,null,null,14,null,null,null,"15:00:00",null,"17:30:00"]
[null,null,null,null,null,null,null,15,null,null,null,"15:30:00",null,"18:00:00"]
[null,null,null,null,null,null,null,16,null,null,null,"16:00:00",null,"18:30:00"]
[null,null,null,null,null,null,null,17,null,null,null,"16:30:00",null,"19:00:00"]
[null,null,null,null,null,null,null,18,null,null,null,"17:00:00",null,"19:30:00"]
[null,null,null,null,null,null,null,19,null,null,null,"17:30:00",null,"20:00:00"]
[null,null,null,null,null,null,null,20,null,null,null,"18:00:00",null,"20:30:00"]
[null,null,null,null,null,null,null,21,null,null,null,"18:30:00",null,"21:00:00"]
[null,null,null,null,null,null,null,22,null,null,null,"19:00:00"]
[null,null,null,null,null,null,null,23,null,null,null,"19:30:00"]
[null,null,null,null,null,null,null,24,null,null,null,"20:00:00"]
[null,null,null,null,null,null,null,25,null,null,null,"20:30:00"]
[null,null,null,null,null,null,null,26,null,null,null,"21:00:00"]
[null,null,null,null,null,null,null,27]
[null,null,null,null,null,null,null,28]
[null,null,null,null,null,null,null,29]
[null,null,null,null,null,null,null,30]
[null,null,null,null,null,null,null,31]

{"sheet":"貸会議室利用申込書　別紙１＿２（予備）","index":2,"n_rows":94,"n_cols":44,"rows_kept":94,"cut":false,"hidden":false,"merged":[[1,37,1,39],[2,0,3,1],[2,2,3,3],[2,4,3,7],[2,8,3,9],[2,10,3,11],[2,12,3,12],[2,13,3,14],[2,15,3,15],[2,16,3,16],[2,19,3,38],[4,0,9,0],[4,1,9,1],[4,2,5,3],[4,5,5,26],[4,27,4,29],[4,30,4,39],[5,27,6,29],[5,30,6,39],[6,2,6,3],[7,30,7,31],[7,33,7,35],[7,37,7,39],[8,2,8,26],[8,27,8,29],[8,30,8,31],[8,33,8,35],[8,37,8,39],[6,5,6,26],[7,2,7,3],[7,5,7,7],[7,9,7,12],[7,18,7,19],[7,27,7,29],[9,2,9,26],[9,27,9,29],[9,30,9,39],[10,0,15,0],[10,1,15,1],[10,2,11,3],[10,5,11,26],[10,27,10,29],[10,30,10,39],[11,27,12,29],[13,37,13,39],[14,2,14,26],[14,27,14,29],[14,30,14,39],[15,2,15,26],[15,27,15,29],[15,30,15,39],[11,30,12,39],[12,2,12,3],[12,5,12,26],[13,2,13,3],[13,5,13,7],[13,9,13,12],[13,18,13,19],[13,27,13,29],[13,30,13,31],[13,33,13,35],[21,2,21,3],[21,5,21,7],[21,9,21,12],[21,18,21,19],[22,2,22,39],[23,0,30,0],[23,1,26,1],[23,4,24,13],[23,16,24,25],[23,27,23,29],[16,0,22,0],[16,1,22,1],[18,2,18,3],[18,6,18,36],[19,2,19,3],[19,4,19,16],[19,19,20,30],[19,31,19,33],[19,34,20,38],[20,2,20,17],[23,30,23,39],[24,27,24,29],[24,30,25,39],[25,4,26,8],[25,11,26,12],[25,13,26,13],[25,14,26,25],[25,26,26,26],[25,27,25,29],[26,27,26,29],[26,30,26,31],[26,33,26,35],[26,37,26,39],[27,1,28,1],[27,3,28,10],[27,11,28,18],[27,20,28,27],[27,28,28,34],[27,35,28,35],[27,36,28,39],[38,1,38,39],[40,6,40,13],[40,29,40,38],[41,0,41,39],[42,0,42,39],[43,17,43,22],[29,24,30,26],[29,28,30,39],[31,0,36,0],[31,1,36,1],[31,16,31,17],[34,27,34,38],[29,12,30,12],[29,13,30,14],[29,15,30,15],[29,17,30,17],[29,20,30,22],[29,23,30,23],[29,1,30,1],[29,2,30,5],[29,6,30,6],[29,7,30,8],[29,9,30,9],[29,10,30,11],[48,23,49,28],[48,29,49,33],[48,34,49,39],[50,23,51,28],[50,29,51,33],[50,34,51,39],[44,23,45,28],[44,29,45,33],[44,34,45,39],[46,23,47,28],[46,29,47,33],[46,34,47,39],[60,0,60,39],[61,0,61,39],[52,23,53,28],[52,29,53,33],[52,34,53,39],[55,0,59,0],[55,13,55,14],[55,23,55,25],[55,26,55,28],[55,29,55,31],[55,32,55,34],[55,35,55,39]]}
["（2026.4版）エステック情報ビル 貸会議室利用申込書",null,null,null,null,null,null,null,null,null,null,null,null,null,null,null,"◆提出先（E-MAIL）yoyaku@stec-jbldg.co.jp ※Excelファイルをご提出ください。",null,null,null,null,null,null,null,null,null,null,null,null,null,null,null,null,null,null,null,null,null,"(別紙１)",null,null,null,"複数日、別時間帯を同時に申込いただく場合、"]
[]
["申込日",null,"西暦",null,{"$f":"IF('貸会議室利用申込書　別紙１＿１'!E3=\"\",\"\",'貸会議室利用申込書　別紙１＿１'!E3)","v":""},null,null,null,"年",null,{"$f":"IF('貸会議室利用申込書　別紙１＿１'!K3=\"\",\"\",'貸会議室利用申込書　別紙１＿１'!K3)","v":""},null,"月",{"$f":"IF('貸会議室利用申込書　別紙１＿１'!N3=\"\",\"\",'貸会議室利用申込書　別紙１＿１'!N3)","v":""},null,"日",null,null,null,"貸会議室利用規約（2026.2版）について了承の上、\n下記の通り申し込みます。（必須）",null,null,null,null,null,null,null,null,null,null,null,null,null,null,null,null,null,null,null,null,null,null,"お手数ですが、右側にある予備シートへ入力をお願いいたします。"]
[null,null,null,null,null,null,null,null,null,null,null,null,null,null,null,null,null,null,null,null,null,null,null,null,null,null,null,null,null,null,null,null,null,null,null,null,null,null,null,null,null,null,"(申込者、利用者、請求先情報は別紙1_1の入力内容が予備シートへも自動反映されます)"]
["（必須） ","①申込者","法人名",null,null,{"$f":"IF('貸会議室利用申込書　別紙１＿１'!F5=\"\",\"\",'貸会議室利用申込書　別紙１＿１'!F5)","v":""},null,null,null,null,null,null,null,null,null,null,null,null,null,null,null,null,null,null,null,null,null,"フリガナ",null,null,{"$f":"IF('貸会議室利用申込書　別紙１＿１'!AE5=\"\",\"\",'貸会議室利用申込書　別紙１＿１'!AE5)","v":""},null,null,null,null,null,null,null,null,null,null,null,"また、予備３シートでも足りない場合はファイルごとコピー頂くか、"]
[null,null,null,null,null,null,null,null,null,null,null,null,null,null,null,null,null,null,null,null,null,null,null,null,null,null,null,"担当者\n氏  名",null,null,{"$f":"IF('貸会議室利用申込書　別紙１＿１'!AE6=\"\",\"\",'貸会議室利用申込書　別紙１＿１'!AE6)","v":""},null,null,null,null,null,null,null,null,null,null,null,"再度HPからダウンロードいただき別ファイルをお使いください。"]
[null,null,"所　属",null,null,{"$f":"IF('貸会議室利用申込書　別紙１＿１'!F7=\"\",\"\",'貸会議室利用申込書　別紙１＿１'!F7)","v":""}]
[null,null,"住　所",null,"〒",{"$f":"IF('貸会議室利用申込書　別紙１＿１'!F8=\"\",\"\",'貸会議室利用申込書　別紙１＿１'!F8)","v":""},null,null,"－",{"$f":"IF('貸会議室利用申込書　別紙１＿１'!J8=\"\",\"\",'貸会議室利用申込書　別紙１＿１'!J8)","v":""},null,null,null,null,null,null,null,null,null,null,null,null,null,null,null,null,null,"ＴＥＬ",null,null,{"$f":"IF('貸会議室利用申込書　別紙１＿１'!AE8=\"\",\"\",'貸会議室利用申込書　別紙１＿１'!AE8)","v":""},null,"-",{"$f":"IF('貸会議室利用申込書　別紙１＿１'!AH8=\"\",\"\",'貸会議室利用申込書　別紙１＿１'!AH8)","v":""},null,null,"-",{"$f":"IF('貸会議室利用申込書　別紙１＿１'!AL8=\"\",\"\",'貸会議室利用申込書　別紙１＿１'!AL8)","v":""}]
[null,null,{"$f":"IF('貸会議室利用申込書　別紙１＿１'!C9=\"\",\"\",'貸会議室利用申込書　別紙１＿１'!C9)","v":""},null,null,null,null,null,null,null,null,null,null,null,null,null,null,null,null,null,null,null,null,null,null,null,null,"ＦＡＸ",null,null,{"$f":"IF('貸会議室利用申込書　別紙１＿１'!AE9=\"\",\"\",'貸会議室利用申込書　別紙１＿１'!AE9)","v":""},null,"-",{"$f":"IF('貸会議室利用申込書　別紙１＿１'!AH9=\"\",\"\",'貸会議室利用申込書　別紙１＿１'!AH9)","v":""},null,null,"-",{"$f":"IF('貸会議室利用申込書　別紙１＿１'!AL9=\"\",\"\",'貸会議室利用申込書　別紙１＿１'!AL9)","v":""}]
[null,null,{"$f":"IF('貸会議室利用申込書　別紙１＿１'!C10=\"\",\"\",'貸会議室利用申込書　別紙１＿１'!C10)","v":""},null,null,null,null,null,null,null,null,null,null,null,null,null,null,null,null,null,null,null,null,null,null,null,null,"E-ＭＡＩＬ",null,null,{"$f":"IF('貸会議室利用申込書　別紙１＿１'!AE10=\"\",\"\",'貸会議室利用申込書　別紙１＿１'!AE10)","v":""}]
["申込者と異なる場合","➁利用者","法人名",null,null,{"$f":"IF('貸会議室利用申込書　別紙１＿１'!F11=\"\",\"\",'貸会議室利用申込書　別紙１＿１'!F11)","v":""},null,null,null,null,null,null,null,null,null,null,null,null,null,null,null,null,null,null,null,null,null,"フリガナ",null,null,{"$f":"IF('貸会議室利用申込書　別紙１＿１'!AE11=\"\",\"\",'貸会議室利用申込書　別紙１＿１'!AE11)","v":""}]
[null,null,null,null,null,null,null,null,null,null,null,null,null,null,null,null,null,null,null,null,null,null,null,null,null,null,null,"担当者\n氏  名",null,null,{"$f":"IF('貸会議室利用申込書　別紙１＿１'!AE12=\"\",\"\",'貸会議室利用申込書　別紙１＿１'!AE12)","v":""}]
[null,null,"所　属",null,null,{"$f":"IF('貸会議室利用申込書　別紙１＿１'!F13=\"\",\"\",'貸会議室利用申込書　別紙１＿１'!F13)","v":""}]
[null,null,"住　所",null,"〒",{"$f":"IF('貸会議室利用申込書　別紙１＿１'!F14=\"\",\"\",'貸会議室利用申込書　別紙１＿１'!F14)","v":""},null,null,"－",{"$f":"IF('貸会議室利用申込書　別紙１＿１'!J14=\"\",\"\",'貸会議室利用申込書　別紙１＿１'!J14)","v":""},null,null,null,null,null,null,null,null,null,null,null,null,null,null,null,null,null,"ＴＥＬ",null,null,{"$f":"IF('貸会議室利用申込書　別紙１＿１'!AE14=\"\",\"\",'貸会議室利用申込書　別紙１＿１'!AE14)","v":""},null,"-",{"$f":"IF('貸会議室利用申込書　別紙１＿１'!AH14=\"\",\"\",'貸会議室利用申込書　別紙１＿１'!AH14)","v":""},null,null,"-",{"$f":"IF('貸会議室利用申込書　別紙１＿１'!AL14=\"\",\"\",'貸会議室利用申込書　別紙１＿１'!AL14)","v":""}]
[null,null,{"$f":"IF('貸会議室利用申込書　別紙１＿１'!C15=\"\",\"\",'貸会議室利用申込書　別紙１＿１'!C15)","v":""},null,null,null,null,null,null,null,null,null,null,null,null,null,null,null,null,null,null,null,null,null,null,null,null,null,null,null,{"$f":"IF('貸会議室利用申込書　別紙１＿１'!AE15=\"\",\"\",'貸会議室利用申込書　別紙１＿１'!AE15)","v":""}]
[null,null,{"$f":"IF('貸会議室利用申込書　別紙１＿１'!C16=\"\",\"\",'貸会議室利用申込書　別紙１＿１'!C16)","v":""},null,null,null,null,null,null,null,null,null,null,null,null,null,null,null,null,null,null,null,null,null,null,null,null,null,null,null,{"$f":"IF('貸会議室利用申込書　別紙１＿１'!AE16=\"\",\"\",'貸会議室利用申込書　別紙１＿１'!AE16)","v":""}]
["（必須） ","請求先",null,"①申込者",null,null,"　",null,"➁利用者",null,null,null,null,"賃料と一緒に請求（テナント様のみ　利用日翌月の賃料の請求に合わせてご請求致します。）"]
[null,null,null,"申込者（利用者）と異なる住所へ送付希望、請求書の宛名書きにご要望がある場合は下記へご記入下さい。"]
[null,null,"要　望",null,null,"（　　　　　　　　　　　　　",{"$f":"IF('貸会議室利用申込書　別紙１＿１'!G19=\"\",\"\",'貸会議室利用申込書　別紙１＿１'!G19)","v":""},null,null,null,null,null,null,null,null,null,null,null,null,null,null,null,null,null,null,null,null,null,null,null,null,null,null,null,null,null,null,"）"]
[null,null,"法人名",null,{"$f":"IF('貸会議室利用申込書　別紙１＿１'!E20=\"\",\"\",'貸会議室利用申込書　別紙１＿１'!E20)","v":""},null,null,null,null,null,null,null,null,null,null,null,null,"所属",null,{"$f":"IF('貸会議室利用申込書　別紙１＿１'!T20=\"\",\"\",'貸会議室利用申込書　別紙１＿１'!T20)","v":""},null,null,null,null,null,null,null,null,null,null,null,"担当者",null,null,{"$f":"IF('貸会議室利用申込書　別紙１＿１'!AI20=\"\",\"\",'貸会議室利用申込書　別紙１＿１'!AI20)","v":""}]
[null,null,{"$f":"IF('貸会議室利用申込書　別紙１＿１'!C21=\"\",\"\",'貸会議室利用申込書　別紙１＿１'!C21)","v":""}]
[null,null,"住　所",null,"〒",{"$f":"IF('貸会議室利用申込書　別紙１＿１'!F22=\"\",\"\",'貸会議室利用申込書　別紙１＿１'!F22)","v":""},null,null,"－",{"$f":"IF('貸会議室利用申込書　別紙１＿１'!J22=\"\",\"\",'貸会議室利用申込書　別紙１＿１'!J22)","v":""}]
[null,null,{"$f":"IF('貸会議室利用申込書　別紙１＿１'!C23=\"\",\"\",'貸会議室利用申込書　別紙１＿１'!C23)","v":""}]
["（必須） ","利用目的",null,null,"社内（外）会議・説明会",null,null,null,null,null,null,null,null,null,null,null,"講演会・セミナー",null,null,null,null,null,null,null,null,null,null,"フリガナ"]
[null,null,null,null,null,null,null,null,null,null,null,null,null,null,null,null,null,null,null,null,null,null,null,null,null,null,null,"当日現地"]
[null,null,null,null,"研修・勉強会",null,null,null,null,null,null,"その他",null,"（",null,null,null,null,null,null,null,null,null,null,null,null,"）","責任者名"]
[null,null,null,null,null,null,null,null,null,null,null,null,null,null,null,null,null,null,null,null,null,null,null,null,null,null,null,"携帯",null,null,null,null,"-",null,null,null,"-"]
[null,"室名",null,"会議室A（108名定員）",null,null,null,null,null,null,null," 会議室B（195名定員）",null,null,null,null,null,null,null,null,"会議室D（45名定員）",null,null,null,null,null,null,true,"会議室E（18名定員）",null,null,null,null,null,null,"参加人数",null,null,null,null,false,false,false,false]
[]
[null,"利用日",null,null,null,null,"年",null,null,"月",null,null,"日",null,null,"曜日",null,"時間",null,null,null,null,null,"～",null,null,null,null,"※別会場、別時間帯を同時に申込みいただく場合、\n　お手数ですが予備sheetへ入力をお願いいたします。"]
[]
["ご希望のものにチェック","備  品",null,"プロジェクター［ Ａ・Ｂ 各10,000円（税別）］",null,null,null,null,null,null,null,null,null,null,null,null,null,null,null,null,"プロジェクター［Ｄ　5,000円（税別）］",null,null,null,null,null,null,null,null,null,null,null,null,null,"スクリーン",null,null,null,null,null,false,false]
[null,null,null,"ハンドマイク",null,null,null,null,null,null,"本",null,null,null,"ピンマイク",null,null,null,1,"本",null,"※ハンドマイクを３本以上ご希望の場合は事前に要相談。"]
[null,null,null,"レーザーポインター",null,null,null,null,null,1,"個",null,null,null,"水差（容器のみ）",null,null,null,null,null,null,null,null,"アンプ"]
[null,null,null,"ホワイトボード（キャスター付き）",null,null,null,null,null,null,null,null,null,"※各室２台。それ以上要相談",null,null,null,null,null,null,null,null,null,"その他",null,null,"（",null,null,null,null,null,null,null,null,null,null,null,null,"）"]
[null,null,"◆プロジェクター以外追加料金無し。プロジェクターには映像ケーブル（ＶＧＡ・ＨＤＭＩ）とオーディオコード、スクリーンを含みます。"]
[null,null,"◆各会議室常設　…　演台（会議室Ｅを除く）、延長コード、案内板、ホワイトボード、受付用机・椅子、ハンガー、傘立など"]
[null,null,"案内表示を希望の場合ご記入ください。（20～30文字以内）　※スペースの都合によりご希望通り掲載出来ない場合もございます。"]
[]
[null,"<新規申込者様へお尋ねします>　…　どのような経路で当会議室を知りましたか？"]
[null,"①紹介",null,"（","社名　　　　　　　　　　　　　　",null,null,null,null,null,null,null,null,null,"）",null,null,"➁ホームページ",null,null,null,null,null,null,null,"③その他",null,null,"（",null,null,null,null,null,null,null,null,null,null,"）"]
[]
["　　　　　エステック社内処理欄 （以下記入不要）"]
[null,null,null,null,null,null,null,null,null,null,null,null,null,null,null,null,null,"内　　訳",null,null,null,null,null,null,null,"料　　金",null,null,null,null,null,"消費税等 10%",null,null,null,null,"合　　計"]
[null,null,null,null,null,null,null,null,null,null,null,null,null,null,null,null,null,null,"基本料金",null,null,null,null,null,null,null,null,null,null,{"$f":"X45*0.1","v":0},null,null,null,null,{"$f":"X45+AD45","v":0}]
[]
[null,null,null,null,null,null,null,null,null,null,null,null,null,null,null,null,null,null,"延長料金",null,null,null,null,null,null,null,null,null,null,{"$f":"X47*0.1","v":0},null,null,null,null,{"$f":"X47+AD47","v":0}]
[]
[null,null,null,null,null,null,null,null,null,null,null,null,null,null,null,null,null,null,"室料金計",null,null,null,null,{"$f":"SUM(X45:AC48)","v":0},null,null,null,null,null,{"$f":"SUM(AD45:AH48)","v":0},null,null,null,null,{"$f":"X49+AD49","v":0}]
[]
[null,null,null,null,null,null,null,null,null,null,null,null,null,null,null,null,null,null,"ﾌﾟﾛｼﾞｪｸﾀｰ他",null,null,null,null,0,null,null,null,null,null,{"$f":"X51*0.1","v":0},null,null,null,null,{"$f":"X51+AD51","v":0}]
[]
[null,null,null,null,null,null,null,null,null,null,null,null,null,null,null,null,null,null,"請求金額合計",null,null,null,null,{"$f":"SUM(X49:AC52)","v":0},null,null,null,null,null,{"$f":"SUM(AD49:AH52)","v":0},null,null,null,null,{"$f":"X53+AD53","v":0}]
[]
[]
["備  考",null,"新　規",null,"（              ）",null,null,null,null,null,null,null,null,null,null,null,null,null,null,null,"帳",null,"hp","総務部",null,null,"常 務",null,null,"部 長",null,null,"担 当",null,null,"領収印"]
[null,null,"テナント"]
[null,null,"前回利用",null,null,"（   　　　　           ）"]
[null,null,"入金予定",null,null,"（        　　　　      ）"]
[]
["当社は、「個人情報保護に関する法律」を遵守し、上記にご記入の個人情報を本申込用件に係る目的以外には一切利用致しません。　"]
["　エステック株式会社　　（TEL）03-3342-3515\n◆お申込書ダウンロード→（URL）http://stec-jbldg.co.jp/conference　◆提出先［ＥＸＣＥＬ］→（E-MAIL）yoyaku@stec-jbldg.co.jp  　（FAX）03-3342-3510"]
[null,null,null,null,null,"年",null,"日","月","曜",null,"開始",null,"終了"]
[null,null,null,null,null,2022,null,1,1,"（月）",null,"08:30:00",null,"11:00:00"]
[null,null,null,null,null,2023,null,2,2,"（火）",null,"09:00:00",null,"11:30:00"]
[null,null,null,null,null,2024,null,3,3,"（水）",null,"09:30:00",null,"12:00:00"]
[null,null,null,null,null,2025,null,4,4,"（木）",null,"10:00:00",null,"12:30:00"]
[null,null,null,null,null,2026,null,5,5,"（金）",null,"10:30:00",null,"13:00:00"]
[null,null,null,null,null,2027,null,6,6,"（土）",null,"11:00:00",null,"13:30:00"]
[null,null,null,null,null,2028,null,7,7,"（日）",null,"11:30:00",null,"14:00:00"]
[null,null,null,null,null,2029,null,8,8,null,null,"12:00:00",null,"14:30:00"]
[null,null,null,null,null,null,null,9,9,null,null,"12:30:00",null,"15:00:00"]
[null,null,null,null,null,null,null,10,10,null,null,"13:00:00",null,"15:30:00"]
[null,null,null,null,null,null,null,11,11,null,null,"13:30:00",null,"16:00:00"]
[null,null,null,null,null,null,null,12,12,null,null,"14:00:00",null,"16:30:00"]
[null,null,null,null,null,null,null,13,null,null,null,"14:30:00",null,"17:00:00"]
[null,null,null,null,null,null,null,14,null,null,null,"15:00:00",null,"17:30:00"]
[null,null,null,null,null,null,null,15,null,null,null,"15:30:00",null,"18:00:00"]
[null,null,null,null,null,null,null,16,null,null,null,"16:00:00",null,"18:30:00"]
[null,null,null,null,null,null,null,17,null,null,null,"16:30:00",null,"19:00:00"]
[null,null,null,null,null,null,null,18,null,null,null,"17:00:00",null,"19:30:00"]
[null,null,null,null,null,null,null,19,null,null,null,"17:30:00",null,"20:00:00"]
[null,null,null,null,null,null,null,20,null,null,null,"18:00:00",null,"20:30:00"]
[null,null,null,null,null,null,null,21,null,null,null,"18:30:00",null,"21:00:00"]
[null,null,null,null,null,null,null,22,null,null,null,"19:00:00"]
[null,null,null,null,null,null,null,23,null,null,null,"19:30:00"]
[null,null,null,null,null,null,null,24,null,null,null,"20:00:00"]
[null,null,null,null,null,null,null,25,null,null,null,"20:30:00"]
[null,null,null,null,null,null,null,26,null,null,null,"21:00:00"]
[null,null,null,null,null,null,null,27]
[null,null,null,null,null,null,null,28]
[null,null,null,null,null,null,null,29]
[null,null,null,null,null,null,null,30]
[null,null,null,null,null,null,null,31]

{"sheet":"貸会議室利用申込書　別紙１＿３（予備）","index":3,"n_rows":94,"n_cols":44,"rows_kept":94,"cut":false,"hidden":false,"merged":[[1,37,1,39],[2,0,3,1],[2,2,3,3],[2,4,3,7],[2,8,3,9],[2,10,3,11],[2,12,3,12],[2,13,3,14],[2,15,3,15],[2,16,3,16],[2,19,3,38],[4,0,9,0],[4,1,9,1],[4,2,5,3],[4,5,5,26],[4,27,4,29],[4,30,4,39],[5,27,6,29],[5,30,6,39],[6,2,6,3],[7,30,7,31],[7,33,7,35],[7,37,7,39],[8,2,8,26],[8,27,8,29],[8,30,8,31],[8,33,8,35],[8,37,8,39],[6,5,6,26],[7,2,7,3],[7,5,7,7],[7,9,7,12],[7,18,7,19],[7,27,7,29],[9,2,9,26],[9,27,9,29],[9,30,9,39],[10,0,15,0],[10,1,15,1],[10,2,11,3],[10,5,11,26],[10,27,10,29],[10,30,10,39],[11,27,12,29],[13,37,13,39],[14,2,14,26],[14,27,14,29],[14,30,14,39],[15,2,15,26],[15,27,15,29],[15,30,15,39],[11,30,12,39],[12,2,12,3],[12,5,12,26],[13,2,13,3],[13,5,13,7],[13,9,13,12],[13,18,13,19],[13,27,13,29],[13,30,13,31],[13,33,13,35],[21,2,21,3],[21,5,21,7],[21,9,21,12],[21,18,21,19],[22,2,22,39],[23,0,30,0],[23,1,26,1],[23,4,24,13],[23,16,24,25],[23,27,23,29],[16,0,22,0],[16,1,22,1],[18,2,18,3],[18,6,18,36],[19,2,19,3],[19,4,19,16],[19,19,20,30],[19,31,19,33],[19,34,20,38],[20,2,20,17],[23,30,23,39],[24,27,24,29],[24,30,25,39],[25,4,26,8],[25,11,26,12],[25,13,26,13],[25,14,26,25],[25,26,26,26],[25,27,25,29],[26,27,26,29],[26,30,26,31],[26,33,26,35],[26,37,26,39],[27,1,28,1],[27,3,28,10],[27,11,28,18],[27,20,28,27],[27,28,28,34],[27,35,28,35],[27,36,28,39],[38,1,38,39],[40,6,40,13],[40,29,40,38],[41,0,41,39],[42,0,42,39],[43,17,43,22],[29,24,30,26],[29,28,30,39],[31,0,36,0],[31,1,36,1],[31,16,31,17],[34,27,34,38],[29,12,30,12],[29,13,30,14],[29,15,30,15],[29,17,30,17],[29,20,30,22],[29,23,30,23],[29,1,30,1],[29,2,30,5],[29,6,30,6],[29,7,30,8],[29,9,30,9],[29,10,30,11],[48,23,49,28],[48,29,49,33],[48,34,49,39],[50,23,51,28],[50,29,51,33],[50,34,51,39],[44,23,45,28],[44,29,45,33],[44,34,45,39],[46,23,47,28],[46,29,47,33],[46,34,47,39],[60,0,60,39],[61,0,61,39],[52,23,53,28],[52,29,53,33],[52,34,53,39],[55,0,59,0],[55,13,55,14],[55,23,55,25],[55,26,55,28],[55,29,55,31],[55,32,55,34],[55,35,55,39]]}
["（2026.4版）エステック情報ビル 貸会議室利用申込書",null,null,null,null,null,null,null,null,null,null,null,null,null,null,null,"◆提出先（E-MAIL）yoyaku@stec-jbldg.co.jp ※Excelファイルをご提出ください。",null,null,null,null,null,null,null,null,null,null,null,null,null,null,null,null,null,null,null,null,null,"(別紙１)",null,null,null,"複数日、別時間帯を同時に申込いただく場合、"]
[]
["申込日",null,"西暦",null,{"$f":"IF('貸会議室利用申込書　別紙１＿１'!E3=\"\",\"\",'貸会議室利用申込書　別紙１＿１'!E3)","v":""},null,null,null,"年",null,{"$f":"IF('貸会議室利用申込書　別紙１＿１'!K3=\"\",\"\",'貸会議室利用申込書　別紙１＿１'!K3)","v":""},null,"月",{"$f":"IF('貸会議室利用申込書　別紙１＿１'!N3=\"\",\"\",'貸会議室利用申込書　別紙１＿１'!N3)","v":""},null,"日",null,null,null,"貸会議室利用規約（2026.2版）について了承の上、\n下記の通り申し込みます。（必須）",null,null,null,null,null,null,null,null,null,null,null,null,null,null,null,null,null,null,null,null,null,null,"お手数ですが、右側にある予備シートへ入力をお願いいたします。"]
[null,null,null,null,null,null,null,null,null,null,null,null,null,null,null,null,null,null,null,null,null,null,null,null,null,null,null,null,null,null,null,null,null,null,null,null,null,null,null,null,null,null,"(申込者、利用者、請求先情報は別紙1_1の入力内容が予備シートへも自動反映されます)"]
["（必須） ","①申込者","法人名",null,null,{"$f":"IF('貸会議室利用申込書　別紙１＿１'!F5=\"\",\"\",'貸会議室利用申込書　別紙１＿１'!F5)","v":""},null,null,null,null,null,null,null,null,null,null,null,null,null,null,null,null,null,null,null,null,null,"フリガナ",null,null,{"$f":"IF('貸会議室利用申込書　別紙１＿１'!AE5=\"\",\"\",'貸会議室利用申込書　別紙１＿１'!AE5)","v":""},null,null,null,null,null,null,null,null,null,null,null,"また、予備３シートでも足りない場合はファイルごとコピー頂くか、"]
[null,null,null,null,null,null,null,null,null,null,null,null,null,null,null,null,null,null,null,null,null,null,null,null,null,null,null,"担当者\n氏  名",null,null,{"$f":"IF('貸会議室利用申込書　別紙１＿１'!AE6=\"\",\"\",'貸会議室利用申込書　別紙１＿１'!AE6)","v":""},null,null,null,null,null,null,null,null,null,null,null,"再度HPからダウンロードいただき別ファイルをお使いください。"]
[null,null,"所　属",null,null,{"$f":"IF('貸会議室利用申込書　別紙１＿１'!F7=\"\",\"\",'貸会議室利用申込書　別紙１＿１'!F7)","v":""}]
[null,null,"住　所",null,"〒",{"$f":"IF('貸会議室利用申込書　別紙１＿１'!F8=\"\",\"\",'貸会議室利用申込書　別紙１＿１'!F8)","v":""},null,null,"－",{"$f":"IF('貸会議室利用申込書　別紙１＿１'!J8=\"\",\"\",'貸会議室利用申込書　別紙１＿１'!J8)","v":""},null,null,null,null,null,null,null,null,null,null,null,null,null,null,null,null,null,"ＴＥＬ",null,null,{"$f":"IF('貸会議室利用申込書　別紙１＿１'!AE8=\"\",\"\",'貸会議室利用申込書　別紙１＿１'!AE8)","v":""},null,"-",{"$f":"IF('貸会議室利用申込書　別紙１＿１'!AH8=\"\",\"\",'貸会議室利用申込書　別紙１＿１'!AH8)","v":""},null,null,"-",{"$f":"IF('貸会議室利用申込書　別紙１＿１'!AL8=\"\",\"\",'貸会議室利用申込書　別紙１＿１'!AL8)","v":""}]
[null,null,{"$f":"IF('貸会議室利用申込書　別紙１＿１'!C9=\"\",\"\",'貸会議室利用申込書　別紙１＿１'!C9)","v":""},null,null,null,null,null,null,null,null,null,null,null,null,null,null,null,null,null,null,null,null,null,null,null,null,"ＦＡＸ",null,null,{"$f":"IF('貸会議室利用申込書　別紙１＿１'!AE9=\"\",\"\",'貸会議室利用申込書　別紙１＿１'!AE9)","v":""},null,"-",{"$f":"IF('貸会議室利用申込書　別紙１＿１'!AH9=\"\",\"\",'貸会議室利用申込書　別紙１＿１'!AH9)","v":""},null,null,"-",{"$f":"IF('貸会議室利用申込書　別紙１＿１'!AL9=\"\",\"\",'貸会議室利用申込書　別紙１＿１'!AL9)","v":""}]
[null,null,{"$f":"IF('貸会議室利用申込書　別紙１＿１'!C10=\"\",\"\",'貸会議室利用申込書　別紙１＿１'!C10)","v":""},null,null,null,null,null,null,null,null,null,null,null,null,null,null,null,null,null,null,null,null,null,null,null,null,"E-ＭＡＩＬ",null,null,{"$f":"IF('貸会議室利用申込書　別紙１＿１'!AE10=\"\",\"\",'貸会議室利用申込書　別紙１＿１'!AE10)","v":""}]
["申込者と異なる場合","➁利用者","法人名",null,null,{"$f":"IF('貸会議室利用申込書　別紙１＿１'!F11=\"\",\"\",'貸会議室利用申込書　別紙１＿１'!F11)","v":""},null,null,null,null,null,null,null,null,null,null,null,null,null,null,null,null,null,null,null,null,null,"フリガナ",null,null,{"$f":"IF('貸会議室利用申込書　別紙１＿１'!AE11=\"\",\"\",'貸会議室利用申込書　別紙１＿１'!AE11)","v":""}]
[null,null,null,null,null,null,null,null,null,null,null,null,null,null,null,null,null,null,null,null,null,null,null,null,null,null,null,"担当者\n氏  名",null,null,{"$f":"IF('貸会議室利用申込書　別紙１＿１'!AE12=\"\",\"\",'貸会議室利用申込書　別紙１＿１'!AE12)","v":""}]
[null,null,"所　属",null,null,{"$f":"IF('貸会議室利用申込書　別紙１＿１'!F13=\"\",\"\",'貸会議室利用申込書　別紙１＿１'!F13)","v":""}]
[null,null,"住　所",null,"〒",{"$f":"IF('貸会議室利用申込書　別紙１＿１'!F14=\"\",\"\",'貸会議室利用申込書　別紙１＿１'!F14)","v":""},null,null,"－",{"$f":"IF('貸会議室利用申込書　別紙１＿１'!J14=\"\",\"\",'貸会議室利用申込書　別紙１＿１'!J14)","v":""},null,null,null,null,null,null,null,null,null,null,null,null,null,null,null,null,null,"ＴＥＬ",null,null,{"$f":"IF('貸会議室利用申込書　別紙１＿１'!AE14=\"\",\"\",'貸会議室利用申込書　別紙１＿１'!AE14)","v":""},null,"-",{"$f":"IF('貸会議室利用申込書　別紙１＿１'!AH14=\"\",\"\",'貸会議室利用申込書　別紙１＿１'!AH14)","v":""},null,null,"-",{"$f":"IF('貸会議室利用申込書　別紙１＿１'!AL14=\"\",\"\",'貸会議室利用申込書　別紙１＿１'!AL14)","v":""}]
[null,null,{"$f":"IF('貸会議室利用申込書　別紙１＿１'!C15=\"\",\"\",'貸会議室利用申込書　別紙１＿１'!C15)","v":""},null,null,null,null,null,null,null,null,null,null,null,null,null,null,null,null,null,null,null,null,null,null,null,null,null,null,null,{"$f":"IF('貸会議室利用申込書　別紙１＿１'!AE15=\"\",\"\",'貸会議室利用申込書　別紙１＿１'!AE15)","v":""}]
[null,null,{"$f":"IF('貸会議室利用申込書　別紙１＿１'!C16=\"\",\"\",'貸会議室利用申込書　別紙１＿１'!C16)","v":""},null,null,null,null,null,null,null,null,null,null,null,null,null,null,null,null,null,null,null,null,null,null,null,null,null,null,null,{"$f":"IF('貸会議室利用申込書　別紙１＿１'!AE16=\"\",\"\",'貸会議室利用申込書　別紙１＿１'!AE16)","v":""}]
["（必須） ","請求先",null,"①申込者",null,null,"　",null,"➁利用者",null,null,null,null,"賃料と一緒に請求（テナント様のみ　利用日翌月の賃料の請求に合わせてご請求致します。）"]
[null,null,null,"申込者（利用者）と異なる住所へ送付希望、請求書の宛名書きにご要望がある場合は下記へご記入下さい。"]
[null,null,"要　望",null,null,"（　　　　　　　　　　　　　",{"$f":"IF('貸会議室利用申込書　別紙１＿１'!G19=\"\",\"\",'貸会議室利用申込書　別紙１＿１'!G19)","v":""},null,null,null,null,null,null,null,null,null,null,null,null,null,null,null,null,null,null,null,null,null,null,null,null,null,null,null,null,null,null,"）"]
[null,null,"法人名",null,{"$f":"IF('貸会議室利用申込書　別紙１＿１'!E20=\"\",\"\",'貸会議室利用申込書　別紙１＿１'!E20)","v":""},null,null,null,null,null,null,null,null,null,null,null,null,"所属",null,{"$f":"IF('貸会議室利用申込書　別紙１＿１'!T20=\"\",\"\",'貸会議室利用申込書　別紙１＿１'!T20)","v":""},null,null,null,null,null,null,null,null,null,null,null,"担当者",null,null,{"$f":"IF('貸会議室利用申込書　別紙１＿１'!AI20=\"\",\"\",'貸会議室利用申込書　別紙１＿１'!AI20)","v":""}]
[null,null,{"$f":"IF('貸会議室利用申込書　別紙１＿１'!C21=\"\",\"\",'貸会議室利用申込書　別紙１＿１'!C21)","v":""}]
[null,null,"住　所",null,"〒",{"$f":"IF('貸会議室利用申込書　別紙１＿１'!F22=\"\",\"\",'貸会議室利用申込書　別紙１＿１'!F22)","v":""},null,null,"－",{"$f":"IF('貸会議室利用申込書　別紙１＿１'!J22=\"\",\"\",'貸会議室利用申込書　別紙１＿１'!J22)","v":""}]
[null,null,{"$f":"IF('貸会議室利用申込書　別紙１＿１'!C23=\"\",\"\",'貸会議室利用申込書　別紙１＿１'!C23)","v":""}]
["（必須） ","利用目的",null,null,"社内（外）会議・説明会",null,null,null,null,null,null,null,null,null,null,null,"講演会・セミナー",null,null,null,null,null,null,null,null,null,null,"フリガナ"]
[null,null,null,null,null,null,null,null,null,null,null,null,null,null,null,null,null,null,null,null,null,null,null,null,null,null,null,"当日現地"]
[null,null,null,null,"研修・勉強会",null,null,null,null,null,null,"その他",null,"（",null,null,null,null,null,null,null,null,null,null,null,null,"）","責任者名"]
[null,null,null,null,null,null,null,null,null,null,null,null,null,null,null,null,null,null,null,null,null,null,null,null,null,null,null,"携帯",null,null,null,null,"-",null,null,null,"-"]
[null,"室名",null,"会議室A（108名定員）",null,null,null,null,null,null,null," 会議室B（195名定員）",null,null,null,null,null,null,null,null,"会議室D（45名定員）",null,null,null,null,null,null,true,"会議室E（18名定員）",null,null,null,null,null,null,"参加人数",null,null,null,null,false,false,false,false]
[]
[null,"利用日",null,null,null,null,"年",null,null,"月",null,null,"日",null,null,"曜日",null,"時間",null,null,null,null,null,"～",null,null,null,null,"※別会場、別時間帯を同時に申込みいただく場合、\n　お手数ですが予備sheetへ入力をお願いいたします。"]
[]
["ご希望のものにチェック","備  品",null,"プロジェクター［ Ａ・Ｂ 各10,000円（税別）］",null,null,null,null,null,null,null,null,null,null,null,null,null,null,null,null,"プロジェクター［Ｄ　5,000円（税別）］",null,null,null,null,null,null,null,null,null,null,null,null,null,"スクリーン",null,null,null,null,null,false,false]
[null,null,null,"ハンドマイク",null,null,null,null,null,null,"本",null,null,null,"ピンマイク",null,null,null,1,"本",null,"※ハンドマイクを３本以上ご希望の場合は事前に要相談。"]
[null,null,null,"レーザーポインター",null,null,null,null,null,1,"個",null,null,null,"水差（容器のみ）",null,null,null,null,null,null,null,null,"アンプ"]
[null,null,null,"ホワイトボード（キャスター付き）",null,null,null,null,null,null,null,null,null,"※各室２台。それ以上要相談",null,null,null,null,null,null,null,null,null,"その他",null,null,"（",null,null,null,null,null,null,null,null,null,null,null,null,"）"]
[null,null,"◆プロジェクター以外追加料金無し。プロジェクターには映像ケーブル（ＶＧＡ・ＨＤＭＩ）とオーディオコード、スクリーンを含みます。"]
[null,null,"◆各会議室常設　…　演台（会議室Ｅを除く）、延長コード、案内板、ホワイトボード、受付用机・椅子、ハンガー、傘立など"]
[null,null,"案内表示を希望の場合ご記入ください。（20～30文字以内）　※スペースの都合によりご希望通り掲載出来ない場合もございます。"]
[]
[null,"<新規申込者様へお尋ねします>　…　どのような経路で当会議室を知りましたか？"]
[null,"①紹介",null,"（","社名　　　　　　　　　　　　　　",null,null,null,null,null,null,null,null,null,"）",null,null,"➁ホームページ",null,null,null,null,null,null,null,"③その他",null,null,"（",null,null,null,null,null,null,null,null,null,null,"）"]
[]
["　　　　　エステック社内処理欄 （以下記入不要）"]
[null,null,null,null,null,null,null,null,null,null,null,null,null,null,null,null,null,"内　　訳",null,null,null,null,null,null,null,"料　　金",null,null,null,null,null,"消費税等 10%",null,null,null,null,"合　　計"]
[null,null,null,null,null,null,null,null,null,null,null,null,null,null,null,null,null,null,"基本料金",null,null,null,null,null,null,null,null,null,null,{"$f":"X45*0.1","v":0},null,null,null,null,{"$f":"X45+AD45","v":0}]
[]
[null,null,null,null,null,null,null,null,null,null,null,null,null,null,null,null,null,null,"延長料金",null,null,null,null,null,null,null,null,null,null,{"$f":"X47*0.1","v":0},null,null,null,null,{"$f":"X47+AD47","v":0}]
[]
[null,null,null,null,null,null,null,null,null,null,null,null,null,null,null,null,null,null,"室料金計",null,null,null,null,{"$f":"SUM(X45:AC48)","v":0},null,null,null,null,null,{"$f":"SUM(AD45:AH48)","v":0},null,null,null,null,{"$f":"X49+AD49","v":0}]
[]
[null,null,null,null,null,null,null,null,null,null,null,null,null,null,null,null,null,null,"ﾌﾟﾛｼﾞｪｸﾀｰ他",null,null,null,null,0,null,null,null,null,null,{"$f":"X51*0.1","v":0},null,null,null,null,{"$f":"X51+AD51","v":0}]
[]
[null,null,null,null,null,null,null,null,null,null,null,null,null,null,null,null,null,null,"請求金額合計",null,null,null,null,{"$f":"SUM(X49:AC52)","v":0},null,null,null,null,null,{"$f":"SUM(AD49:AH52)","v":0},null,null,null,null,{"$f":"X53+AD53","v":0}]
[]
[]
["備  考",null,"新　規",null,"（              ）",null,null,null,null,null,null,null,null,null,null,null,null,null,null,null,"帳",null,"hp","総務部",null,null,"常 務",null,null,"部 長",null,null,"担 当",null,null,"領収印"]
[null,null,"テナント"]
[null,null,"前回利用",null,null,"（   　　　　           ）"]
[null,null,"入金予定",null,null,"（        　　　　      ）"]
[]
["当社は、「個人情報保護に関する法律」を遵守し、上記にご記入の個人情報を本申込用件に係る目的以外には一切利用致しません。　"]
["　エステック株式会社　　（TEL）03-3342-3515\n◆お申込書ダウンロード→（URL）http://stec-jbldg.co.jp/conference　◆提出先［ＥＸＣＥＬ］→（E-MAIL）yoyaku@stec-jbldg.co.jp  　（FAX）03-3342-3510"]
[null,null,null,null,null,"年",null,"日","月","曜",null,"開始",null,"終了"]
[null,null,null,null,null,2022,null,1,1,"（月）",null,"08:30:00",null,"11:00:00"]
[null,null,null,null,null,2023,null,2,2,"（火）",null,"09:00:00",null,"11:30:00"]
[null,null,null,null,null,2024,null,3,3,"（水）",null,"09:30:00",null,"12:00:00"]
[null,null,null,null,null,2025,null,4,4,"（木）",null,"10:00:00",null,"12:30:00"]
[null,null,null,null,null,2026,null,5,5,"（金）",null,"10:30:00",null,"13:00:00"]
[null,null,null,null,null,2027,null,6,6,"（土）",null,"11:00:00",null,"13:30:00"]
[null,null,null,null,null,2028,null,7,7,"（日）",null,"11:30:00",null,"14:00:00"]
[null,null,null,null,null,2029,null,8,8,null,null,"12:00:00",null,"14:30:00"]
[null,null,null,null,null,null,null,9,9,null,null,"12:30:00",null,"15:00:00"]
[null,null,null,null,null,null,null,10,10,null,null,"13:00:00",null,"15:30:00"]
[null,null,null,null,null,null,null,11,11,null,null,"13:30:00",null,"16:00:00"]
[null,null,null,null,null,null,null,12,12,null,null,"14:00:00",null,"16:30:00"]
[null,null,null,null,null,null,null,13,null,null,null,"14:30:00",null,"17:00:00"]
[null,null,null,null,null,null,null,14,null,null,null,"15:00:00",null,"17:30:00"]
[null,null,null,null,null,null,null,15,null,null,null,"15:30:00",null,"18:00:00"]
[null,null,null,null,null,null,null,16,null,null,null,"16:00:00",null,"18:30:00"]
[null,null,null,null,null,null,null,17,null,null,null,"16:30:00",null,"19:00:00"]
[null,null,null,null,null,null,null,18,null,null,null,"17:00:00",null,"19:30:00"]
[null,null,null,null,null,null,null,19,null,null,null,"17:30:00",null,"20:00:00"]
[null,null,null,null,null,null,null,20,null,null,null,"18:00:00",null,"20:30:00"]
[null,null,null,null,null,null,null,21,null,null,null,"18:30:00",null,"21:00:00"]
[null,null,null,null,null,null,null,22,null,null,null,"19:00:00"]
[null,null,null,null,null,null,null,23,null,null,null,"19:30:00"]
[null,null,null,null,null,null,null,24,null,null,null,"20:00:00"]
[null,null,null,null,null,null,null,25,null,null,null,"20:30:00"]
[null,null,null,null,null,null,null,26,null,null,null,"21:00:00"]
[null,null,null,null,null,null,null,27]
[null,null,null,null,null,null,null,28]
[null,null,null,null,null,null,null,29]
[null,null,null,null,null,null,null,30]
[null,null,null,null,null,null,null,31]

{"sheet":"貸会議室利用申込書　別紙１＿４（予備）","index":4,"n_rows":94,"n_cols":44,"rows_kept":94,"cut":false,"hidden":false,"merged":[[1,37,1,39],[2,0,3,1],[2,2,3,3],[2,4,3,7],[2,8,3,9],[2,10,3,11],[2,12,3,12],[2,13,3,14],[2,15,3,15],[2,16,3,16],[2,19,3,38],[4,0,9,0],[4,1,9,1],[4,2,5,3],[4,5,5,26],[4,27,4,29],[4,30,4,39],[5,27,6,29],[5,30,6,39],[6,2,6,3],[7,30,7,31],[7,33,7,35],[7,37,7,39],[8,2,8,26],[8,27,8,29],[8,30,8,31],[8,33,8,35],[8,37,8,39],[6,5,6,26],[7,2,7,3],[7,5,7,7],[7,9,7,12],[7,18,7,19],[7,27,7,29],[9,2,9,26],[9,27,9,29],[9,30,9,39],[10,0,15,0],[10,1,15,1],[10,2,11,3],[10,5,11,26],[10,27,10,29],[10,30,10,39],[11,27,12,29],[13,37,13,39],[14,2,14,26],[14,27,14,29],[14,30,14,39],[15,2,15,26],[15,27,15,29],[15,30,15,39],[11,30,12,39],[12,2,12,3],[12,5,12,26],[13,2,13,3],[13,5,13,7],[13,9,13,12],[13,18,13,19],[13,27,13,29],[13,30,13,31],[13,33,13,35],[21,2,21,3],[21,5,21,7],[21,9,21,12],[21,18,21,19],[22,2,22,39],[23,0,30,0],[23,1,26,1],[23,4,24,13],[23,16,24,25],[23,27,23,29],[16,0,22,0],[16,1,22,1],[18,2,18,3],[18,6,18,36],[19,2,19,3],[19,4,19,16],[19,19,20,30],[19,31,19,33],[19,34,20,38],[20,2,20,17],[23,30,23,39],[24,27,24,29],[24,30,25,39],[25,4,26,8],[25,11,26,12],[25,13,26,13],[25,14,26,25],[25,26,26,26],[25,27,25,29],[26,27,26,29],[26,30,26,31],[26,33,26,35],[26,37,26,39],[27,1,28,1],[27,3,28,10],[27,11,28,18],[27,20,28,27],[27,28,28,34],[27,35,28,35],[27,36,28,39],[38,1,38,39],[40,6,40,13],[40,29,40,38],[41,0,41,39],[42,0,42,39],[43,17,43,22],[29,24,30,26],[29,28,30,39],[31,0,36,0],[31,1,36,1],[31,16,31,17],[34,27,34,38],[29,12,30,12],[29,13,30,14],[29,15,30,15],[29,17,30,17],[29,20,30,22],[29,23,30,23],[29,1,30,1],[29,2,30,5],[29,6,30,6],[29,7,30,8],[29,9,30,9],[29,10,30,11],[48,23,49,28],[48,29,49,33],[48,34,49,39],[50,23,51,28],[50,29,51,33],[50,34,51,39],[44,23,45,28],[44,29,45,33],[44,34,45,39],[46,23,47,28],[46,29,47,33],[46,34,47,39],[60,0,60,39],[61,0,61,39],[52,23,53,28],[52,29,53,33],[52,34,53,39],[55,0,59,0],[55,13,55,14],[55,23,55,25],[55,26,55,28],[55,29,55,31],[55,32,55,34],[55,35,55,39]]}
["（2026.4版）エステック情報ビル 貸会議室利用申込書",null,null,null,null,null,null,null,null,null,null,null,null,null,null,null,"◆提出先（E-MAIL）yoyaku@stec-jbldg.co.jp ※Excelファイルをご提出ください。",null,null,null,null,null,null,null,null,null,null,null,null,null,null,null,null,null,null,null,null,null,"(別紙１)",null,null,null,"複数日、別時間帯を同時に申込いただく場合、"]
[]
["申込日",null,"西暦",null,{"$f":"IF('貸会議室利用申込書　別紙１＿１'!E3=\"\",\"\",'貸会議室利用申込書　別紙１＿１'!E3)","v":""},null,null,null,"年",null,{"$f":"IF('貸会議室利用申込書　別紙１＿１'!K3=\"\",\"\",'貸会議室利用申込書　別紙１＿１'!K3)","v":""},null,"月",{"$f":"IF('貸会議室利用申込書　別紙１＿１'!N3=\"\",\"\",'貸会議室利用申込書　別紙１＿１'!N3)","v":""},null,"日",null,null,null,"貸会議室利用規約（2026.2版）について了承の上、\n下記の通り申し込みます。（必須）",null,null,null,null,null,null,null,null,null,null,null,null,null,null,null,null,null,null,null,null,null,null,"お手数ですが、右側にある予備シートへ入力をお願いいたします。"]
[null,null,null,null,null,null,null,null,null,null,null,null,null,null,null,null,null,null,null,null,null,null,null,null,null,null,null,null,null,null,null,null,null,null,null,null,null,null,null,null,null,null,"(申込者、利用者、請求先情報は別紙1_1の入力内容が予備シートへも自動反映されます)"]
["（必須） ","①申込者","法人名",null,null,{"$f":"IF('貸会議室利用申込書　別紙１＿１'!F5=\"\",\"\",'貸会議室利用申込書　別紙１＿１'!F5)","v":""},null,null,null,null,null,null,null,null,null,null,null,null,null,null,null,null,null,null,null,null,null,"フリガナ",null,null,{"$f":"IF('貸会議室利用申込書　別紙１＿１'!AE5=\"\",\"\",'貸会議室利用申込書　別紙１＿１'!AE5)","v":""},null,null,null,null,null,null,null,null,null,null,null,"また、予備３シートでも足りない場合はファイルごとコピー頂くか、"]
[null,null,null,null,null,null,null,null,null,null,null,null,null,null,null,null,null,null,null,null,null,null,null,null,null,null,null,"担当者\n氏  名",null,null,{"$f":"IF('貸会議室利用申込書　別紙１＿１'!AE6=\"\",\"\",'貸会議室利用申込書　別紙１＿１'!AE6)","v":""},null,null,null,null,null,null,null,null,null,null,null,"再度HPからダウンロードいただき別ファイルをお使いください。"]
[null,null,"所　属",null,null,{"$f":"IF('貸会議室利用申込書　別紙１＿１'!F7=\"\",\"\",'貸会議室利用申込書　別紙１＿１'!F7)","v":""}]
[null,null,"住　所",null,"〒",{"$f":"IF('貸会議室利用申込書　別紙１＿１'!F8=\"\",\"\",'貸会議室利用申込書　別紙１＿１'!F8)","v":""},null,null,"－",{"$f":"IF('貸会議室利用申込書　別紙１＿１'!J8=\"\",\"\",'貸会議室利用申込書　別紙１＿１'!J8)","v":""},null,null,null,null,null,null,null,null,null,null,null,null,null,null,null,null,null,"ＴＥＬ",null,null,{"$f":"IF('貸会議室利用申込書　別紙１＿１'!AE8=\"\",\"\",'貸会議室利用申込書　別紙１＿１'!AE8)","v":""},null,"-",{"$f":"IF('貸会議室利用申込書　別紙１＿１'!AH8=\"\",\"\",'貸会議室利用申込書　別紙１＿１'!AH8)","v":""},null,null,"-",{"$f":"IF('貸会議室利用申込書　別紙１＿１'!AL8=\"\",\"\",'貸会議室利用申込書　別紙１＿１'!AL8)","v":""}]
[null,null,{"$f":"IF('貸会議室利用申込書　別紙１＿１'!C9=\"\",\"\",'貸会議室利用申込書　別紙１＿１'!C9)","v":""},null,null,null,null,null,null,null,null,null,null,null,null,null,null,null,null,null,null,null,null,null,null,null,null,"ＦＡＸ",null,null,{"$f":"IF('貸会議室利用申込書　別紙１＿１'!AE9=\"\",\"\",'貸会議室利用申込書　別紙１＿１'!AE9)","v":""},null,"-",{"$f":"IF('貸会議室利用申込書　別紙１＿１'!AH9=\"\",\"\",'貸会議室利用申込書　別紙１＿１'!AH9)","v":""},null,null,"-",{"$f":"IF('貸会議室利用申込書　別紙１＿１'!AL9=\"\",\"\",'貸会議室利用申込書　別紙１＿１'!AL9)","v":""}]
[null,null,{"$f":"IF('貸会議室利用申込書　別紙１＿１'!C10=\"\",\"\",'貸会議室利用申込書　別紙１＿１'!C10)","v":""},null,null,null,null,null,null,null,null,null,null,null,null,null,null,null,null,null,null,null,null,null,null,null,null,"E-ＭＡＩＬ",null,null,{"$f":"IF('貸会議室利用申込書　別紙１＿１'!AE10=\"\",\"\",'貸会議室利用申込書　別紙１＿１'!AE10)","v":""}]
["申込者と異なる場合","➁利用者","法人名",null,null,{"$f":"IF('貸会議室利用申込書　別紙１＿１'!F11=\"\",\"\",'貸会議室利用申込書　別紙１＿１'!F11)","v":""},null,null,null,null,null,null,null,null,null,null,null,null,null,null,null,null,null,null,null,null,null,"フリガナ",null,null,{"$f":"IF('貸会議室利用申込書　別紙１＿１'!AE11=\"\",\"\",'貸会議室利用申込書　別紙１＿１'!AE11)","v":""}]
[null,null,null,null,null,null,null,null,null,null,null,null,null,null,null,null,null,null,null,null,null,null,null,null,null,null,null,"担当者\n氏  名",null,null,{"$f":"IF('貸会議室利用申込書　別紙１＿１'!AE12=\"\",\"\",'貸会議室利用申込書　別紙１＿１'!AE12)","v":""}]
[null,null,"所　属",null,null,{"$f":"IF('貸会議室利用申込書　別紙１＿１'!F13=\"\",\"\",'貸会議室利用申込書　別紙１＿１'!F13)","v":""}]
[null,null,"住　所",null,"〒",{"$f":"IF('貸会議室利用申込書　別紙１＿１'!F14=\"\",\"\",'貸会議室利用申込書　別紙１＿１'!F14)","v":""},null,null,"－",{"$f":"IF('貸会議室利用申込書　別紙１＿１'!J14=\"\",\"\",'貸会議室利用申込書　別紙１＿１'!J14)","v":""},null,null,null,null,null,null,null,null,null,null,null,null,null,null,null,null,null,"ＴＥＬ",null,null,{"$f":"IF('貸会議室利用申込書　別紙１＿１'!AE14=\"\",\"\",'貸会議室利用申込書　別紙１＿１'!AE14)","v":""},null,"-",{"$f":"IF('貸会議室利用申込書　別紙１＿１'!AH14=\"\",\"\",'貸会議室利用申込書　別紙１＿１'!AH14)","v":""},null,null,"-",{"$f":"IF('貸会議室利用申込書　別紙１＿１'!AL14=\"\",\"\",'貸会議室利用申込書　別紙１＿１'!AL14)","v":""}]
[null,null,{"$f":"IF('貸会議室利用申込書　別紙１＿１'!C15=\"\",\"\",'貸会議室利用申込書　別紙１＿１'!C15)","v":""},null,null,null,null,null,null,null,null,null,null,null,null,null,null,null,null,null,null,null,null,null,null,null,null,null,null,null,{"$f":"IF('貸会議室利用申込書　別紙１＿１'!AE15=\"\",\"\",'貸会議室利用申込書　別紙１＿１'!AE15)","v":""}]
[null,null,{"$f":"IF('貸会議室利用申込書　別紙１＿１'!C16=\"\",\"\",'貸会議室利用申込書　別紙１＿１'!C16)","v":""},null,null,null,null,null,null,null,null,null,null,null,null,null,null,null,null,null,null,null,null,null,null,null,null,null,null,null,{"$f":"IF('貸会議室利用申込書　別紙１＿１'!AE16=\"\",\"\",'貸会議室利用申込書　別紙１＿１'!AE16)","v":""}]
["（必須） ","請求先",null,"①申込者",null,null,"　",null,"➁利用者",null,null,null,null,"賃料と一緒に請求（テナント様のみ　利用日翌月の賃料の請求に合わせてご請求致します。）"]
[null,null,null,"申込者（利用者）と異なる住所へ送付希望、請求書の宛名書きにご要望がある場合は下記へご記入下さい。"]
[null,null,"要　望",null,null,"（　　　　　　　　　　　　　",{"$f":"IF('貸会議室利用申込書　別紙１＿１'!G19=\"\",\"\",'貸会議室利用申込書　別紙１＿１'!G19)","v":""},null,null,null,null,null,null,null,null,null,null,null,null,null,null,null,null,null,null,null,null,null,null,null,null,null,null,null,null,null,null,"）"]
[null,null,"法人名",null,{"$f":"IF('貸会議室利用申込書　別紙１＿１'!E20=\"\",\"\",'貸会議室利用申込書　別紙１＿１'!E20)","v":""},null,null,null,null,null,null,null,null,null,null,null,null,"所属",null,{"$f":"IF('貸会議室利用申込書　別紙１＿１'!T20=\"\",\"\",'貸会議室利用申込書　別紙１＿１'!T20)","v":""},null,null,null,null,null,null,null,null,null,null,null,"担当者",null,null,{"$f":"IF('貸会議室利用申込書　別紙１＿１'!AI20=\"\",\"\",'貸会議室利用申込書　別紙１＿１'!AI20)","v":""}]
[null,null,{"$f":"IF('貸会議室利用申込書　別紙１＿１'!C21=\"\",\"\",'貸会議室利用申込書　別紙１＿１'!C21)","v":""}]
[null,null,"住　所",null,"〒",{"$f":"IF('貸会議室利用申込書　別紙１＿１'!F22=\"\",\"\",'貸会議室利用申込書　別紙１＿１'!F22)","v":""},null,null,"－",{"$f":"IF('貸会議室利用申込書　別紙１＿１'!J22=\"\",\"\",'貸会議室利用申込書　別紙１＿１'!J22)","v":""}]
[null,null,{"$f":"IF('貸会議室利用申込書　別紙１＿１'!C23=\"\",\"\",'貸会議室利用申込書　別紙１＿１'!C23)","v":""}]
["（必須） ","利用目的",null,null,"社内（外）会議・説明会",null,null,null,null,null,null,null,null,null,null,null,"講演会・セミナー",null,null,null,null,null,null,null,null,null,null,"フリガナ"]
[null,null,null,null,null,null,null,null,null,null,null,null,null,null,null,null,null,null,null,null,null,null,null,null,null,null,null,"当日現地"]
[null,null,null,null,"研修・勉強会",null,null,null,null,null,null,"その他",null,"（",null,null,null,null,null,null,null,null,null,null,null,null,"）","責任者名"]
[null,null,null,null,null,null,null,null,null,null,null,null,null,null,null,null,null,null,null,null,null,null,null,null,null,null,null,"携帯",null,null,null,null,"-",null,null,null,"-"]
[null,"室名",null,"会議室A（108名定員）",null,null,null,null,null,null,null," 会議室B（195名定員）",null,null,null,null,null,null,null,null,"会議室D（45名定員）",null,null,null,null,null,null,true,"会議室E（18名定員）",null,null,null,null,null,null,"参加人数",null,null,null,null,false,false,false,false]
[]
[null,"利用日",null,null,null,null,"年",null,null,"月",null,null,"日",null,null,"曜日",null,"時間",null,null,null,null,null,"～",null,null,null,null,"※別会場、別時間帯を同時に申込みいただく場合、\n　お手数ですが予備sheetへ入力をお願いいたします。"]
[]
["ご希望のものにチェック","備  品",null,"プロジェクター［ Ａ・Ｂ 各10,000円（税別）］",null,null,null,null,null,null,null,null,null,null,null,null,null,null,null,null,"プロジェクター［Ｄ　5,000円（税別）］",null,null,null,null,null,null,null,null,null,null,null,null,null,"スクリーン",null,null,null,null,null,false,false]
[null,null,null,"ハンドマイク",null,null,null,null,null,null,"本",null,null,null,"ピンマイク",null,null,null,1,"本",null,"※ハンドマイクを３本以上ご希望の場合は事前に要相談。"]
[null,null,null,"レーザーポインター",null,null,null,null,null,1,"個",null,null,null,"水差（容器のみ）",null,null,null,null,null,null,null,null,"アンプ"]
[null,null,null,"ホワイトボード（キャスター付き）",null,null,null,null,null,null,null,null,null,"※各室２台。それ以上要相談",null,null,null,null,null,null,null,null,null,"その他",null,null,"（",null,null,null,null,null,null,null,null,null,null,null,null,"）"]
[null,null,"◆プロジェクター以外追加料金無し。プロジェクターには映像ケーブル（ＶＧＡ・ＨＤＭＩ）とオーディオコード、スクリーンを含みます。"]
[null,null,"◆各会議室常設　…　演台（会議室Ｅを除く）、延長コード、案内板、ホワイトボード、受付用机・椅子、ハンガー、傘立など"]
[null,null,"案内表示を希望の場合ご記入ください。（20～30文字以内）　※スペースの都合によりご希望通り掲載出来ない場合もございます。"]
[]
[null,"<新規申込者様へお尋ねします>　…　どのような経路で当会議室を知りましたか？"]
[null,"①紹介",null,"（","社名　　　　　　　　　　　　　　",null,null,null,null,null,null,null,null,null,"）",null,null,"➁ホームページ",null,null,null,null,null,null,null,"③その他",null,null,"（",null,null,null,null,null,null,null,null,null,null,"）"]
[]
["　　　　　エステック社内処理欄 （以下記入不要）"]
[null,null,null,null,null,null,null,null,null,null,null,null,null,null,null,null,null,"内　　訳",null,null,null,null,null,null,null,"料　　金",null,null,null,null,null,"消費税等 10%",null,null,null,null,"合　　計"]
[null,null,null,null,null,null,null,null,null,null,null,null,null,null,null,null,null,null,"基本料金",null,null,null,null,null,null,null,null,null,null,{"$f":"X45*0.1","v":0},null,null,null,null,{"$f":"X45+AD45","v":0}]
[]
[null,null,null,null,null,null,null,null,null,null,null,null,null,null,null,null,null,null,"延長料金",null,null,null,null,null,null,null,null,null,null,{"$f":"X47*0.1","v":0},null,null,null,null,{"$f":"X47+AD47","v":0}]
[]
[null,null,null,null,null,null,null,null,null,null,null,null,null,null,null,null,null,null,"室料金計",null,null,null,null,{"$f":"SUM(X45:AC48)","v":0},null,null,null,null,null,{"$f":"SUM(AD45:AH48)","v":0},null,null,null,null,{"$f":"X49+AD49","v":0}]
[]
[null,null,null,null,null,null,null,null,null,null,null,null,null,null,null,null,null,null,"ﾌﾟﾛｼﾞｪｸﾀｰ他",null,null,null,null,0,null,null,null,null,null,{"$f":"X51*0.1","v":0},null,null,null,null,{"$f":"X51+AD51","v":0}]
[]
[null,null,null,null,null,null,null,null,null,null,null,null,null,null,null,null,null,null,"請求金額合計",null,null,null,null,{"$f":"SUM(X49:AC52)","v":0},null,null,null,null,null,{"$f":"SUM(AD49:AH52)","v":0},null,null,null,null,{"$f":"X53+AD53","v":0}]
[]
[]
["備  考",null,"新　規",null,"（              ）",null,null,null,null,null,null,null,null,null,null,null,null,null,null,null,"帳",null,"hp","総務部",null,null,"常 務",null,null,"部 長",null,null,"担 当",null,null,"領収印"]
[null,null,"テナント"]
[null,null,"前回利用",null,null,"（   　　　　           ）"]
[null,null,"入金予定",null,null,"（        　　　　      ）"]
[]
["当社は、「個人情報保護に関する法律」を遵守し、上記にご記入の個人情報を本申込用件に係る目的以外には一切利用致しません。　"]
["　エステック株式会社　　（TEL）03-3342-3515\n◆お申込書ダウンロード→（URL）http://stec-jbldg.co.jp/conference　◆提出先［ＥＸＣＥＬ］→（E-MAIL）yoyaku@stec-jbldg.co.jp  　（FAX）03-3342-3510"]
[null,null,null,null,null,"年",null,"日","月","曜",null,"開始",null,"終了"]
[null,null,null,null,null,2022,null,1,1,"（月）",null,"08:30:00",null,"11:00:00"]
[null,null,null,null,null,2023,null,2,2,"（火）",null,"09:00:00",null,"11:30:00"]
[null,null,null,null,null,2024,null,3,3,"（水）",null,"09:30:00",null,"12:00:00"]
[null,null,null,null,null,2025,null,4,4,"（木）",null,"10:00:00",null,"12:30:00"]
[null,null,null,null,null,2026,null,5,5,"（金）",null,"10:30:00",null,"13:00:00"]
[null,null,null,null,null,2027,null,6,6,"（土）",null,"11:00:00",null,"13:30:00"]
[null,null,null,null,null,2028,null,7,7,"（日）",null,"11:30:00",null,"14:00:00"]
[null,null,null,null,null,2029,null,8,8,null,null,"12:00:00",null,"14:30:00"]
[null,null,null,null,null,null,null,9,9,null,null,"12:30:00",null,"15:00:00"]
[null,null,null,null,null,null,null,10,10,null,null,"13:00:00",null,"15:30:00"]
[null,null,null,null,null,null,null,11,11,null,null,"13:30:00",null,"16:00:00"]
[null,null,null,null,null,null,null,12,12,null,null,"14:00:00",null,"16:30:00"]
[null,null,null,null,null,null,null,13,null,null,null,"14:30:00",null,"17:00:00"]
[null,null,null,null,null,null,null,14,null,null,null,"15:00:00",null,"17:30:00"]
[null,null,null,null,null,null,null,15,null,null,null,"15:30:00",null,"18:00:00"]
[null,null,null,null,null,null,null,16,null,null,null,"16:00:00",null,"18:30:00"]
[null,null,null,null,null,null,null,17,null,null,null,"16:30:00",null,"19:00:00"]
[null,null,null,null,null,null,null,18,null,null,null,"17:00:00",null,"19:30:00"]
[null,null,null,null,null,null,null,19,null,null,null,"17:30:00",null,"20:00:00"]
[null,null,null,null,null,null,null,20,null,null,null,"18:00:00",null,"20:30:00"]
[null,null,null,null,null,null,null,21,null,null,null,"18:30:00",null,"21:00:00"]
[null,null,null,null,null,null,null,22,null,null,null,"19:00:00"]
[null,null,null,null,null,null,null,23,null,null,null,"19:30:00"]
[null,null,null,null,null,null,null,24,null,null,null,"20:00:00"]
[null,null,null,null,null,null,null,25,null,null,null,"20:30:00"]
[null,null,null,null,null,null,null,26,null,null,null,"21:00:00"]
[null,null,null,null,null,null,null,27]
[null,null,null,null,null,null,null,28]
[null,null,null,null,null,null,null,29]
[null,null,null,null,null,null,null,30]
[null,null,null,null,null,null,null,31]

{"sheet":"貸会議室利用申込書　別紙１ (記入例）","index":5,"n_rows":94,"n_cols":45,"rows_kept":94,"cut":false,"hidden":false,"merged":[[29,28,30,39],[19,34,20,38],[19,19,20,30],[26,30,26,31],[26,33,26,35],[26,37,26,39],[22,2,22,39],[6,2,6,3],[6,5,6,26],[29,15,30,15],[14,30,14,39],[5,27,6,29],[11,27,12,29],[7,27,7,29],[8,27,8,29],[7,2,7,3],[7,5,7,7],[7,9,7,12],[7,18,7,19],[29,20,30,22],[29,24,30,26],[24,30,25,39],[18,6,18,36],[4,5,5,26],[10,5,11,26],[23,16,24,25],[23,4,24,13],[25,4,26,8],[25,26,26,26],[25,11,26,12],[25,13,26,13],[25,14,26,25],[4,30,4,39],[10,30,10,39],[11,30,12,39],[20,2,20,17],[14,2,14,26],[15,2,15,26],[19,2,19,3],[18,2,18,3],[8,2,8,26],[9,2,9,26],[15,27,15,29],[16,1,22,1],[10,0,15,0],[19,31,19,33],[16,0,22,0],[9,27,9,29],[10,27,10,29],[13,27,13,29],[14,27,14,29],[10,1,15,1],[10,2,11,3],[12,2,12,3],[12,5,12,26],[13,30,13,31],[21,2,21,3],[21,5,21,7],[21,9,21,12],[21,18,21,19],[13,2,13,3],[13,5,13,7],[13,9,13,12],[13,18,13,19],[15,30,15,39],[13,33,13,35],[13,37,13,39],[50,23,51,28],[50,29,51,33],[50,34,51,39],[60,0,60,39],[61,0,61,39],[55,0,59,0],[55,13,55,14],[55,23,55,25],[55,26,55,28],[55,29,55,31],[55,32,55,34],[55,35,55,39],[52,23,53,28],[52,29,53,33],[52,34,53,39],[44,23,45,28],[44,29,45,33],[44,34,45,39],[46,23,47,28],[46,29,47,33],[46,34,47,39],[48,23,49,28],[48,29,49,33],[48,34,49,39],[38,1,38,39],[40,6,40,13],[40,29,40,38],[41,0,41,39],[42,0,42,39],[43,17,43,22],[31,0,36,0],[31,1,36,1],[31,16,31,17],[34,27,34,38],[23,0,30,0],[23,1,26,1],[23,27,23,29],[24,27,24,29],[25,27,25,29],[26,27,26,29],[29,23,30,23],[27,36,28,39],[29,1,30,1],[29,2,30,5],[29,6,30,6],[29,7,30,8],[29,9,30,9],[29,10,30,11],[29,12,30,12],[29,13,30,14],[29,17,30,17],[27,1,28,1],[27,3,28,10],[27,11,28,18],[27,20,28,27],[27,28,28,34],[27,35,28,35],[23,30,23,39],[2,19,3,38],[4,0,9,0],[4,1,9,1],[1,37,1,39],[2,0,3,1],[2,2,3,3],[2,4,3,7],[2,8,3,9],[2,10,3,11],[2,12,3,12],[2,13,3,14],[2,15,3,15],[2,16,3,16],[5,30,6,39],[7,30,7,31],[7,33,7,35],[7,37,7,39],[8,30,8,31],[8,33,8,35],[8,37,8,39],[9,30,9,39],[4,27,4,29],[4,2,5,3]]}
["（2026.4版）エステック情報ビル 貸会議室利用申込書",null,null,null,null,null,null,null,null,null,null,null,null,null,null,null,null,null,null,null,"【記入例】",null,null,null,null,null,null,null,null,null,null,null,null,null,null,null,null,"(別紙１)"]
[]
["申込日",null,"西暦",null,2023,null,null,null,"年",null,12,null,"月",1,null,"日",null,null,null,"貸会議室利用規約（2026.2版）について了承の上、\n下記の通り申し込みます。（必須）",null,null,null,null,null,null,null,null,null,null,null,null,null,null,null,null,null,null,null,null,null,"申込日　→　ご記入日　"]
[null,null,null,null,null,null,null,null,null,null,null,null,null,null,null,null,null,null,null,null,null,null,null,null,null,null,null,null,null,null,null,null,null,null,null,null,null,null,null,null,null,"□貸会議室利用規約について～　→　「貸会議室利用規約（2026.2）」をご確認の上、□に必ずチェック（レ）を入れて下さい。"]
["（必須） ","①申込者","法人名",null,null,"〇〇〇株式会社",null,null,null,null,null,null,null,null,null,null,null,null,null,null,null,null,null,null,null,null,null,"フリガナ",null,null,"スズキ　イチロウ"]
[null,null,null,null,null,null,null,null,null,null,null,null,null,null,null,null,null,null,null,null,null,null,null,null,null,null,null,"担当者\n氏  名",null,null,"鈴木　一郎"]
[null,null,"所　属",null,null,"総務部"]
[null,null,"住　所",null,"〒",123,null,null,"－",23,null,null,null,null,null,null,null,null,null,null,null,null,null,null,null,null,null,"ＴＥＬ",null,null,"03",null,"-","0000",null,null,"-","0000"]
[null,null,"東京都新宿区〇〇〇2-2-2",null,null,null,null,null,null,null,null,null,null,null,null,null,null,null,null,null,null,null,null,null,null,null,null,"ＦＡＸ",null,null,"03",null,"-","0000",null,null,"-","0000"]
[null,null,"〇〇〇ビル〇〇F",null,null,null,null,null,null,null,null,null,null,null,null,null,null,null,null,null,null,null,null,null,null,null,null,"E-ＭＡＩＬ",null,null,"xxxx@xxxx.co.jp"]
["申込者と異なる場合","➁利用者","法人名",null,null,null,null,null,null,null,null,null,null,null,null,null,null,null,null,null,null,null,null,null,null,null,null,"フリガナ",null,null,null,null,null,null,null,null,null,null,null,null,null,"➁利用者　→　申込者と利用者が異なる場合ご記入下さい。"]
[null,null,null,null,null,null,null,null,null,null,null,null,null,null,null,null,null,null,null,null,null,null,null,null,null,null,null,"担当者\n氏  名"]
[null,null,"所　属"]
[null,null,"住　所",null,"〒",null,null,null,"－",null,null,null,null,null,null,null,null,null,null,null,null,null,null,null,null,null,null,"ＴＥＬ",null,null,null,null,"-",null,null,null,"-"]
[]
[]
["（必須） ","請求先",null,"①申込者",null,null,"　",null,"➁利用者",null,null,null,null,"賃料と一緒に請求（テナント様のみ　利用日翌月の賃料の請求に合わせてご請求致します。）",null,null,null,null,null,null,null,null,null,null,null,null,null,null,null,null,null,null,null,null,null,null,null,null,null,null,null,"請求書送付先　"]
[null,null,null,"申込者（利用者）と異なる住所へ送付希望、請求書の宛名書きにご要望がある場合は下記へご記入下さい。",null,null,null,null,null,null,null,null,null,null,null,null,null,null,null,null,null,null,null,null,null,null,null,null,null,null,null,null,null,null,null,null,null,null,null,null,null,"要望　→　請求書宛名に決まった名称のご希望がある場合。　「〇〇協議会」など"]
[null,null,"要　望",null,null,"（　　　　　　　　　　　　　",null,null,null,null,null,null,null,null,null,null,null,null,null,null,null,null,null,null,null,null,null,null,null,null,null,null,null,null,null,null,null,"）"]
[null,null,"法人名",null,null,null,null,null,null,null,null,null,null,null,null,null,null,"所属",null,"経理部",null,null,null,null,null,null,null,null,null,null,null,"担当者",null,null,"田中　太郎"]
[null,null,"〇〇〇株式会社"]
[null,null,"住　所",null,"〒",123,null,null,"－",0]
[null,null,"東京都新宿区〇〇〇1-1-1"]
["（必須） ","利用目的",null,null,"社内（外）会議・説明会",null,null,null,null,null,null,null,null,null,null,null,"講演会・セミナー",null,null,null,null,null,null,null,null,null,null,"フリガナ",null,null,"スズキ　イチロウ"]
[null,null,null,null,null,null,null,null,null,null,null,null,null,null,null,null,null,null,null,null,null,null,null,null,null,null,null,"当日現地",null,null,"鈴木　一郎"]
[null,null,null,null,"研修・勉強会",null,null,null,null,null,null,"その他",null,"（",null,null,null,null,null,null,null,null,null,null,null,null,"）","責任者名"]
[null,null,null,null,null,null,null,null,null,null,null,null,null,null,null,null,null,null,null,null,null,null,null,null,null,null,null,"携帯",null,null,"090",null,"-","0000",null,null,"-","0000"]
[null,"室名",null,"会議室A（108名定員）",null,null,null,null,null,null,null," 会議室B（195名定員）",null,null,null,null,null,null,null,null,"会議室D（45名定員）",null,null,null,null,null,null,null,"会議室E（18名定員）",null,null,null,null,null,null,"参加人数",100,null,null,null,null,"室名　→　複数日ご利用の場合はシートをコピー、タブを増やして作成下さい。"]
[null,null,null,null,null,null,null,null,null,null,null,null,null,null,null,null,null,null,null,null,null,null,null,null,null,null,null,null,null,null,null,null,null,null,null,null,null,null,null,null,null,"参加人数　→　必ず定員内でご記入下さい。"]
[null,"利用日",2023,null,null,null,"年",4,null,"月",15,null,"日","（月）",null,"曜日",null,"時間",null,null,"09:00:00",null,null,"～","17:00:00",null,null,null,"※別会場や別時間帯のを同時に申込みいただく場合、\n　お手数ですがsheetをコピーして作成してください。",null,null,null,null,null,null,null,null,null,null,null,null,"時間　→　 準備と原状復帰の時間を含みます。仮予約時と変更（延長）になる場合は事前に空きを確認してからお申込み下さい。"]
[null,null,null,null,null,null,null,null,null,null,null,null,null,null,null,null,null,null,null,null,null,null,null,null,null,null,null,null,null,null,null,null,null,null,null,null,null,null,null,null,null,null,null,null,"複数室ご利用で利用時間が異なる場合はシートコピー、タブを増やして作成下さい。"]
["ご希望のものにチェック","備  品",null,"プロジェクター［ Ａ・Ｂ 各10,000円（税別）］",null,null,null,null,null,null,null,null,null,null,null,null,"Ａ",null,null,null,"プロジェクター［Ｄ　5,000円（税別）］",null,null,null,null,null,null,null,null,null,null,null,null,null,"スクリーン",null,null,null,null,null,null,"スクリーン　→　スクリーンの貸し出しのみご希望の場合。"]
[null,null,null,"ハンドマイク",null,null,null,null,null,3,"本",null,null,null,"ピンマイク",null,null,null,1,"本",null,"※ハンドマイクを３本以上ご希望の場合は事前に要相談。"]
[null,null,null,"レーザーポインター",null,null,null,null,null,1,"個",null,null,null,"水差（容器のみ）",null,null,null,null,null,null,null,null,"アンプ"]
[null,null,null,"ホワイトボード（キャスター付き）",null,null,null,null,null,null,null,null,null,"※各室２台。それ以上要相談",null,null,null,null,null,null,null,null,null,"その他",null,null,"（",null,null,null,null,null,null,null,null,null,null,null,null,"）"]
[null,null,"◆プロジェクター以外追加料金無し。プロジェクターには映像ケーブル（ＶＧＡ・ＨＤＭＩ）とオーディオコード、スクリーンを含みます。"]
[null,null,"◆各会議室常設　…　演台（会議室Ｅを除く）、延長コード、案内板、ホワイトボード、受付用机・椅子、ハンガー、傘立など"]
[null,null,"案内表示を希望の場合ご記入ください。（20～30文字以内）　※スペースの都合によりご希望通り掲載出来ない場合もございます。"]
[null,"10：00～16：00　〇〇〇協議会",null,null,null,null,null,null,null,null,null,null,null,null,null,null,null,null,null,null,null,null,null,null,null,null,null,null,null,null,null,null,null,null,null,null,null,null,null,null,null,"案内表示　→　例）１０：００～１６：００　　〇〇株式会社　　会社説明会　"]
[null,"<新規申込者様へお尋ねします>　…　どのような経路で当会議室を知りましたか？"]
[null,"①紹介",null,"（","社名　　　　　　　　　　　　　　",null,null,null,null,null,null,null,null,null,"）",null,null,"➁ホームページ",null,null,null,null,null,null,null,"③その他",null,null,"（",null,null,null,null,null,null,null,null,null,null,"）"]
[]
["　　　　　エステック社内処理欄 （以下記入不要）"]
[null,null,null,null,null,null,null,null,null,null,null,null,null,null,null,null,null,"内　　訳",null,null,null,null,null,null,null,"料　　金",null,null,null,null,null,"消費税等 10%",null,null,null,null,"合　　計"]
[null,null,null,null,null,null,null,null,null,null,null,null,null,null,null,null,null,null,"基本料金",null,null,null,null,null,null,null,null,null,null,null,null,null,null,null,{"$f":"X45+AD45","v":0}]
[]
[null,null,null,null,null,null,null,null,null,null,null,null,null,null,null,null,null,null,"延長料金",null,null,null,null,null,null,null,null,null,null,null,null,null,null,null,{"$f":"X47+AD47","v":0}]
[]
[null,null,null,null,null,null,null,null,null,null,null,null,null,null,null,null,null,null,"室料金計",null,null,null,null,{"$f":"SUM(X45:AC48)","v":0},null,null,null,null,null,{"$f":"SUM(AD45:AH48)","v":0},null,null,null,null,{"$f":"X49+AD49","v":0}]
[]
[null,null,null,null,null,null,null,null,null,null,null,null,null,null,null,null,null,null,"ﾌﾟﾛｼﾞｪｸﾀｰ他",null,null,null,null,null,null,null,null,null,null,null,null,null,null,null,{"$f":"X51+AD51","v":0}]
[]
[null,null,null,null,null,null,null,null,null,null,null,null,null,null,null,null,null,null,"請求金額合計",null,null,null,null,{"$f":"SUM(X49:AC52)","v":0},null,null,null,null,null,{"$f":"SUM(AD49:AH52)","v":0},null,null,null,null,{"$f":"X53+AD53","v":0}]
[]
[]
["備  考",null,"新　規",null,"（              ）",null,null,null,null,null,null,null,null,null,null,null,null,null,null,null,"帳",null,"hp","総務部",null,null,"常 務",null,null,"部 長",null,null,"担 当",null,null,"領収印"]
[null,null,"テナント"]
[null,null,"前回利用",null,null,"（   　　　　           ）"]
[null,null,"入金予定",null,null,"（        　　　　      ）"]
[]
["当社は、「個人情報保護に関する法律」を遵守し、上記にご記入の個人情報を本申込用件に係る目的以外には一切利用致しません。　"]
["　エステック株式会社　　（TEL）03-3342-3515\n◆お申込書ダウンロード→（URL）http://stec-jbldg.co.jp/conference　◆提出先［ＥＸＣＥＬ］→（E-MAIL）yoyaku@stec-jbldg.co.jp  　（FAX）03-3342-3510"]
[null,null,null,null,null,"年",null,"日","月","曜",null,"開始",null,"終了"]
[null,null,null,null,null,2022,null,1,1,"（月）",null,"08:30:00",null,"11:00:00"]
[null,null,null,null,null,2023,null,2,2,"（火）",null,"09:00:00",null,"11:30:00"]
[null,null,null,null,null,2024,null,3,3,"（水）",null,"09:30:00",null,"12:00:00"]
[null,null,null,null,null,2025,null,4,4,"（木）",null,"10:00:00",null,"12:30:00"]
[null,null,null,null,null,2026,null,5,5,"（金）",null,"10:30:00",null,"13:00:00"]
[null,null,null,null,null,2027,null,6,6,"（土）",null,"11:00:00",null,"13:30:00"]
[null,null,null,null,null,2028,null,7,7,"（日）",null,"11:30:00",null,"14:00:00"]
[null,null,null,null,null,2029,null,8,8,null,null,"12:00:00",null,"14:30:00"]
[null,null,null,null,null,null,null,9,9,null,null,"12:30:00",null,"15:00:00"]
[null,null,null,null,null,null,null,10,10,null,null,"13:00:00",null,"15:30:00"]
[null,null,null,null,null,null,null,11,11,null,null,"13:30:00",null,"16:00:00"]
[null,null,null,null,null,null,null,12,12,null,null,"14:00:00",null,"16:30:00"]
[null,null,null,null,null,null,null,13,null,null,null,"14:30:00",null,"17:00:00"]
[null,null,null,null,null,null,null,14,null,null,null,"15:00:00",null,"17:30:00"]
[null,null,null,null,null,null,null,15,null,null,null,"15:30:00",null,"18:00:00"]
[null,null,null,null,null,null,null,16,null,null,null,"16:00:00",null,"18:30:00"]
[null,null,null,null,null,null,null,17,null,null,null,"16:30:00",null,"19:00:00"]
[null,null,null,null,null,null,null,18,null,null,null,"17:00:00",null,"19:30:00"]
[null,null,null,null,null,null,null,19,null,null,null,"17:30:00",null,"20:00:00"]
[null,null,null,null,null,null,null,20,null,null,null,"18:00:00",null,"20:30:00"]
[null,null,null,null,null,null,null,21,null,null,null,"18:30:00",null,"21:00:00"]
[null,null,null,null,null,null,null,22,null,null,null,"19:00:00"]
[null,null,null,null,null,null,null,23,null,null,null,"19:30:00"]
[null,null,null,null,null,null,null,24,null,null,null,"20:00:00"]
[null,null,null,null,null,null,null,25,null,null,null,"20:30:00"]
[null,null,null,null,null,null,null,26,null,null,null,"21:00:00"]
[null,null,null,null,null,null,null,27]
[null,null,null,null,null,null,null,28]
[null,null,null,null,null,null,null,29]
[null,null,null,null,null,null,null,30]
[null,null,null,null,null,null,null,31]

{"sheet":"利用料金表","index":6,"n_rows":20,"n_cols":14,"rows_kept":20,"cut":false,"hidden":false,"merged":[[0,0,0,8],[3,1,4,1],[3,8,4,13]]}
["貸会議室利用料金表（2026.4～）",null,null,null,null,null,null,null,null,null,null,"【2019年10月1日消費税改定】"]
[]
[null,null,null,null,null,null,null,null,null,null,0.1,"（単位：円､税別）"]
[null,"時間帯","X　午前","Y　午後","Z　夜間","X＋Y","Y＋Z","X＋Y＋Z","延　　　長（1コマ30分）"]
["会議室名",null,"9～12","13～17","18～21","9～17","13～21","9～21"]
[null,"時間","3時間","4時間","3時間","8時間","8時間","12時間",1,2,3,4,5,6]
["会議室Ａ/175㎡（53坪）","料金",51000,73000,57000,118000,124000,171000,10000,{"$f":"$I$7*J$6","v":20000},{"$f":"$I$7*K$6","v":30000},{"$f":"$I$7*L$6","v":40000},{"$f":"$I$7*M$6","v":50000},{"$f":"$I$7*N$6","v":60000}]
["テーブル36卓","消費税",{"$f":"C7*$K$3","v":5100},7300,5700,11800,12400,17100,1000,2000,3000,4000,5000,6000]
["教室型　108名","合　計",{"$f":"SUM(C7:C8)","v":56100},{"$f":"SUM(D7:D8)","v":80300},62700,129800,136400,188100,11000,22000,33000,44000,55000,66000]
["会議室Ｂ/295㎡（89坪）","料金",86000,124000,96000,198000,207000,288000,17000,{"$f":"$I$10*J$6","v":34000},{"$f":"$I$10*K$6","v":51000},{"$f":"$I$10*L$6","v":68000},{"$f":"$I$10*M$6","v":85000},{"$f":"$I$10*N$6","v":102000}]
["テーブル65卓","消費税",{"$f":"C10*$K$3","v":8600},12400,9600,19800,20700,28800,1700,3400,5100,6800,8500,10200]
["教室型　195名","合　計",{"$f":"SUM(C10:C11)","v":94600},{"$f":"SUM(D10:D11)","v":136400},105600,217800,227700,316800,18700,37400,56100,74800,93500,112200]
["会議室Ｄ/116㎡（35坪）","料金",34000,49000,37000,78000,82000,114000,8000,{"$f":"$I$13*J$6","v":16000},{"$f":"$I$13*K$6","v":24000},{"$f":"$I$13*L$6","v":32000},{"$f":"$I$13*M$6","v":40000},{"$f":"$I$13*N$6","v":48000}]
["テーブル15卓","消費税",{"$f":"C13*$K$3","v":3400},4900,3700,7800,8200,11400,800,1600,2400,3200,4000,4800]
["教室型　45名","合　計",{"$f":"SUM(C13:C14)","v":37400},{"$f":"SUM(D13:D14)","v":53900},40700,85800,90200,125400,8800,17600,26400,35200,44000,52800]
["会議室Ｅ/39㎡（12坪）","料金",12000,17000,14000,27000,29000,40000,3000,{"$f":"$I$16*J$6","v":6000},{"$f":"$I$16*K$6","v":9000},{"$f":"$I$16*L$6","v":12000},{"$f":"$I$16*M$6","v":15000},{"$f":"$I$16*N$6","v":18000}]
["テーブル6卓","消費税",{"$f":"C16*$K$3","v":1200},1700,1400,2700,2900,4000,300,{"$f":"J16*$K$3","v":600},900,1200,1500,1800]
["ロ型　18名","合　計",{"$f":"SUM(C16:C17)","v":13200},{"$f":"SUM(D16:D17)","v":18700},15400,29700,31900,44000,3300,6600,9900,13200,16500,19800]
[]
["※　プロジェクター代は割引無し　→　会議室Ａ・Ｂ　：　１万円（税別）　、　会議室Ｄ　：　５千円（税別）"]